{"text_format":"1","workbook":"xlsx","n_sheets":2,"sheets":["Форма ввода","База данных"],"not_rendered":{"charts":0,"images":2,"macros":1,"external_links":0,"defined_names":6,"comments":0,"pivot_tables":0},"unopened":[],"bounds":{"document_bytes":16777216,"sheet_cells":100000,"rows_first":2000,"rows_last":500,"rows_between":2000,"halvings":0,"cell_chars":16384,"cell_head_chars":4096},"cells_cut":0,"cells_raw":0,"read":"whole","date_system":"1900"}

{"sheet":"Форма ввода","index":0,"n_rows":24,"n_cols":17,"rows_kept":24,"cut":false,"hidden":false,"merged":[[0,1,0,4],[4,0,4,1],[6,0,6,1],[10,5,12,5],[15,5,17,5],[8,0,8,1],[10,0,10,1],[12,0,12,1],[11,0,11,3],[9,0,9,2],[14,0,14,2],[15,0,15,1],[17,0,17,1],[16,0,16,3],[7,3,8,3]]}
[null,"Форма ввода данных ремонта"]
[]
[null,"Дата",{"$f":"NOW()","v":"2019-04-15T12:15:04.490"}]
[]
["Клиент:",null,"Виталий Киров"]
[]
["Чей он:",null,{"$f":"IFERROR(INDEX(Базаданных[Чей клиент],MATCH('Форма ввода'!$C$5,Базаданных[Клиент],0)),\"\")","v":"Пименов Алексей"}]
[null,null,null,"           Заполняется только в том случае если не понятно чей клиент!!!"]
["К кому отнести:"]
["Д     Е     Б     И     Т",null,null,"Комментарий",null,"Должен НАМ"]
["Дали:",null,null,null,null,{"$f":"SUMIFS(Базаданных[ДД],Базаданных[Клиент],C5)-SUMIFS(Базаданных[ГД],Базаданных[Клиент],C5)","v":3878}]
[]
["Гашение:"]
[]
["К    Р    Е    Д    И    Т",null,null,"Комментарий",null,"Должны МЫ"]
["Взяли:",null,null,null,null,{"$f":"SUMIFS('База данных'!K2:K2,'База данных'!P2:P2,C5)-SUMIFS('База данных'!M2:M2,'База данных'!P2:P2,C5)","v":0}]
[]
["Гашение:"]
[]
[]
[]
[]
[null,"Дата","Время","День","День Прописью","Месяц","Год","Дебит дали","Комментарий \"Дебит дали\"","Дебит загосили","Комментарий \"Дебит загосили\"","Кредит взяли","Комментарий \"Кредит взяли\"","Кредит загасили","Комментарий \"Кредит загасили\"","Чей он","Клиент"]
[null,{"$f":"C3","v":"2019-04-15T12:15:04.490"},{"$f":"C3","v":43570.51046863426},{"$f":"DAY(B24)","v":15},{"$f":"TEXT(B24,\"ДДДД\")","v":"понедельник"},{"$f":"TEXT(B24,\"ММММ\")","v":"Апрель"},{"$f":"TEXT(B24,\"ГГГГ\")","v":"2019"},{"$f":"IF(C11<0,\"-\",C11)","v":0},{"$f":"IF(D11=0,\"-\",D11)","v":"-"},{"$f":"C13","v":0},{"$f":"IF(D13=0,\"-\",D13)","v":"-"},{"$f":"C16","v":0},{"$f":"IF(D16=0,\"-\",D16)","v":"-"},{"$f":"C18","v":0},{"$f":"IF(D18=0,\"-\",D18)","v":"-"},{"$f":"IF(C9>\"\",C9,C7)","v":"Пименов Алексей"},{"$f":"IF(C5=0,\"\",C5)","v":"Виталий Киров"}]

{"sheet":"База данных","index":1,"n_rows":143,"n_cols":22,"rows_kept":143,"cut":false,"hidden":false,"merged":[]}
["Дата","Время","День","День Прописью","Месяц","Год","ДД","Комментарий \"Дебит дали\"","ГД","Комментарий \"Дебит загосили\"","КВ","Комментарий \"Кредит взяли\"","ГК","Комментарий \"Кредит загасили\"","Чей клиент","Клиент","Статус","Индекс","Фильтр","Статус2","Индекс3","Фильтр4"]
["2019-04-01","10:00:00",5,"суббота","Май",2018,110000,null,null,null,null,null,null,null,"Пименов Алексей","Нерсес П-96 (Савеловский)",{"$f":"NOT(ISERROR(SEARCH('Форма ввода'!$C$5,Базаданных[[#This Row],[Клиент]])))","v":false},{"$f":"IF(Базаданных[[#This Row],[Статус]],COUNTIF($Q$2:Базаданных[[#This Row],[Статус]],TRUE),\"\")","v":""},{"$f":"IFERROR(INDEX(Базаданных[Клиент],MATCH(ROWS($R$2:Базаданных[[#This Row],[Индекс]]),Базаданных[Индекс],0)),\"\")","v":"Виталий Киров"},{"$f":"NOT(ISERROR(SEARCH('Форма ввода'!$C$9,Базаданных[[#This Row],[Чей клиент]])))","v":true},{"$f":"IF(Базаданных[[#This Row],[Статус2]],COUNTIF($T$2:Базаданных[[#This Row],[Статус2]],TRUE),\"\")","v":1},{"$f":"IFERROR(INDEX(Базаданных[Чей клиент],MATCH(ROWS($U$2:Базаданных[[#This Row],[Индекс3]]),Базаданных[Индекс3],0)),\"\")","v":"Пименов Алексей"}]
["2019-04-01",43566.83271516204,11,"четверг","Апрель","2019",55000,"-",0,"-",0,"-",0,"-","Пименов Алексей","Саша Криле",{"$f":"NOT(ISERROR(SEARCH('Форма ввода'!$C$5,Базаданных[[#This Row],[Клиент]])))","v":false},{"$f":"IF(Базаданных[[#This Row],[Статус]],COUNTIF($Q$2:Базаданных[[#This Row],[Статус]],TRUE),\"\")","v":""},{"$f":"IFERROR(INDEX(Базаданных[Клиент],MATCH(ROWS($R$2:Базаданных[[#This Row],[Индекс]]),Базаданных[Индекс],0)),\"\")","v":"Виталий Киров"},{"$f":"NOT(ISERROR(SEARCH('Форма ввода'!$C$9,Базаданных[[#This Row],[Чей клиент]])))","v":true},{"$f":"IF(Базаданных[[#This Row],[Статус2]],COUNTIF($T$2:Базаданных[[#This Row],[Статус2]],TRUE),\"\")","v":2},{"$f":"IFERROR(INDEX(Базаданных[Чей клиент],MATCH(ROWS($U$2:Базаданных[[#This Row],[Индекс3]]),Базаданных[Индекс3],0)),\"\")","v":"Пименов Алексей"}]
["2019-04-01",43566.833922337966,11,"четверг","Апрель","2019",75650,"-",0,"-",0,"-",0,"-","Пименов Алексей","Влад П-87",{"$f":"NOT(ISERROR(SEARCH('Форма ввода'!$C$5,Базаданных[[#This Row],[Клиент]])))","v":false},{"$f":"IF(Базаданных[[#This Row],[Статус]],COUNTIF($Q$2:Базаданных[[#This Row],[Статус]],TRUE),\"\")","v":""},{"$f":"IFERROR(INDEX(Базаданных[Клиент],MATCH(ROWS($R$2:Базаданных[[#This Row],[Индекс]]),Базаданных[Индекс],0)),\"\")","v":""},{"$f":"NOT(ISERROR(SEARCH('Форма ввода'!$C$9,Базаданных[[#This Row],[Чей клиент]])))","v":true},{"$f":"IF(Базаданных[[#This Row],[Статус2]],COUNTIF($T$2:Базаданных[[#This Row],[Статус2]],TRUE),\"\")","v":3},{"$f":"IFERROR(INDEX(Базаданных[Чей клиент],MATCH(ROWS($U$2:Базаданных[[#This Row],[Индекс3]]),Базаданных[Индекс3],0)),\"\")","v":"Пименов Алексей"}]
["2019-04-01",43566.834338310182,11,"четверг","Апрель","2019",331000,"-",0,"-",0,"-",0,"-","Пименов Алексей","Армения",{"$f":"NOT(ISERROR(SEARCH('Форма ввода'!$C$5,Базаданных[[#This Row],[Клиент]])))","v":false},{"$f":"IF(Базаданных[[#This Row],[Статус]],COUNTIF($Q$2:Базаданных[[#This Row],[Статус]],TRUE),\"\")","v":""},{"$f":"IFERROR(INDEX(Базаданных[Клиент],MATCH(ROWS($R$2:Базаданных[[#This Row],[Индекс]]),Базаданных[Индекс],0)),\"\")","v":""},{"$f":"NOT(ISERROR(SEARCH('Форма ввода'!$C$9,Базаданных[[#This Row],[Чей клиент]])))","v":true},{"$f":"IF(Базаданных[[#This Row],[Статус2]],COUNTIF($T$2:Базаданных[[#This Row],[Статус2]],TRUE),\"\")","v":4},{"$f":"IFERROR(INDEX(Базаданных[Чей клиент],MATCH(ROWS($U$2:Базаданных[[#This Row],[Индекс3]]),Базаданных[Индекс3],0)),\"\")","v":"Пименов Алексей"}]
["2019-04-01",43567.775615162034,12,"пятница","Апрель","2019",18000,"-",0,"-",0,"-",0,"-","Пименов Алексей","Дмитрий (Вокзалы)",{"$f":"NOT(ISERROR(SEARCH('Форма ввода'!$C$5,Базаданных[[#This Row],[Клиент]])))","v":false},{"$f":"IF(Базаданных[[#This Row],[Статус]],COUNTIF($Q$2:Базаданных[[#This Row],[Статус]],TRUE),\"\")","v":""},{"$f":"IFERROR(INDEX(Базаданных[Клиент],MATCH(ROWS($R$2:Базаданных[[#This Row],[Индекс]]),Базаданных[Индекс],0)),\"\")","v":""},{"$f":"NOT(ISERROR(SEARCH('Форма ввода'!$C$9,Базаданных[[#This Row],[Чей клиент]])))","v":true},{"$f":"IF(Базаданных[[#This Row],[Статус2]],COUNTIF($T$2:Базаданных[[#This Row],[Статус2]],TRUE),\"\")","v":5},{"$f":"IFERROR(INDEX(Базаданных[Чей клиент],MATCH(ROWS($U$2:Базаданных[[#This Row],[Индекс3]]),Базаданных[Индекс3],0)),\"\")","v":"Пименов Алексей"}]
["2019-04-01",43567.776317013886,12,"пятница","Апрель","2019",364648,"-",0,"-",0,"-",0,"-","Пименов Алексей","Дебит Митино",{"$f":"NOT(ISERROR(SEARCH('Форма ввода'!$C$5,Базаданных[[#This Row],[Клиент]])))","v":false},{"$f":"IF(Базаданных[[#This Row],[Статус]],COUNTIF($Q$2:Базаданных[[#This Row],[Статус]],TRUE),\"\")","v":""},{"$f":"IFERROR(INDEX(Базаданных[Клиент],MATCH(ROWS($R$2:Базаданных[[#This Row],[Индекс]]),Базаданных[Индекс],0)),\"\")","v":""},{"$f":"NOT(ISERROR(SEARCH('Форма ввода'!$C$9,Базаданных[[#This Row],[Чей клиент]])))","v":true},{"$f":"IF(Базаданных[[#This Row],[Статус2]],COUNTIF($T$2:Базаданных[[#This Row],[Статус2]],TRUE),\"\")","v":6},{"$f":"IFERROR(INDEX(Базаданных[Чей клиент],MATCH(ROWS($U$2:Базаданных[[#This Row],[Индекс3]]),Базаданных[Индекс3],0)),\"\")","v":"Пименов Алексей"}]
["2019-04-01",43567.776613310183,12,"пятница","Апрель","2019",5000,"-",0,"-",0,"-",0,"-","Пименов Алексей","Брат Сергея",{"$f":"NOT(ISERROR(SEARCH('Форма ввода'!$C$5,Базаданных[[#This Row],[Клиент]])))","v":false},{"$f":"IF(Базаданных[[#This Row],[Статус]],COUNTIF($Q$2:Базаданных[[#This Row],[Статус]],TRUE),\"\")","v":""},{"$f":"IFERROR(INDEX(Базаданных[Клиент],MATCH(ROWS($R$2:Базаданных[[#This Row],[Индекс]]),Базаданных[Индекс],0)),\"\")","v":""},{"$f":"NOT(ISERROR(SEARCH('Форма ввода'!$C$9,Базаданных[[#This Row],[Чей клиент]])))","v":true},{"$f":"IF(Базаданных[[#This Row],[Статус2]],COUNTIF($T$2:Базаданных[[#This Row],[Статус2]],TRUE),\"\")","v":7},{"$f":"IFERROR(INDEX(Базаданных[Чей клиент],MATCH(ROWS($U$2:Базаданных[[#This Row],[Индекс3]]),Базаданных[Индекс3],0)),\"\")","v":"Пименов Алексей"}]
["2019-04-01",43567.776920833334,12,"пятница","Апрель","2019",311370,"-",0,"-",0,"-",0,"-","Пименов Алексей","Эдик (От Сергея)",{"$f":"NOT(ISERROR(SEARCH('Форма ввода'!$C$5,Базаданных[[#This Row],[Клиент]])))","v":false},{"$f":"IF(Базаданных[[#This Row],[Статус]],COUNTIF($Q$2:Базаданных[[#This Row],[Статус]],TRUE),\"\")","v":""},{"$f":"IFERROR(INDEX(Базаданных[Клиент],MATCH(ROWS($R$2:Базаданных[[#This Row],[Индекс]]),Базаданных[Индекс],0)),\"\")","v":""},{"$f":"NOT(ISERROR(SEARCH('Форма ввода'!$C$9,Базаданных[[#This Row],[Чей клиент]])))","v":true},{"$f":"IF(Базаданных[[#This Row],[Статус2]],COUNTIF($T$2:Базаданных[[#This Row],[Статус2]],TRUE),\"\")","v":8},{"$f":"IFERROR(INDEX(Базаданных[Чей клиент],MATCH(ROWS($U$2:Базаданных[[#This Row],[Индекс3]]),Базаданных[Индекс3],0)),\"\")","v":"Пименов Алексей"}]
["2019-04-01",43567.777210879627,12,"пятница","Апрель","2019",3878,"-",0,"-",0,"-",0,"-","Пименов Алексей","Виталий Киров",{"$f":"NOT(ISERROR(SEARCH('Форма ввода'!$C$5,Базаданных[[#This Row],[Клиент]])))","v":true},{"$f":"IF(Базаданных[[#This Row],[Статус]],COUNTIF($Q$2:Базаданных[[#This Row],[Статус]],TRUE),\"\")","v":1},{"$f":"IFERROR(INDEX(Базаданных[Клиент],MATCH(ROWS($R$2:Базаданных[[#This Row],[Индекс]]),Базаданных[Индекс],0)),\"\")","v":""},{"$f":"NOT(ISERROR(SEARCH('Форма ввода'!$C$9,Базаданных[[#This Row],[Чей клиент]])))","v":true},{"$f":"IF(Базаданных[[#This Row],[Статус2]],COUNTIF($T$2:Базаданных[[#This Row],[Статус2]],TRUE),\"\")","v":9},{"$f":"IFERROR(INDEX(Базаданных[Чей клиент],MATCH(ROWS($U$2:Базаданных[[#This Row],[Индекс3]]),Базаданных[Индекс3],0)),\"\")","v":"Пименов Алексей"}]
["2019-04-01",43567.777559259259,12,"пятница","Апрель","2019",300,"-",0,"-",0,"-",0,"-","Пименов Алексей","Мурад (Казахстан)",{"$f":"NOT(ISERROR(SEARCH('Форма ввода'!$C$5,Базаданных[[#This Row],[Клиент]])))","v":false},{"$f":"IF(Базаданных[[#This Row],[Статус]],COUNTIF($Q$2:Базаданных[[#This Row],[Статус]],TRUE),\"\")","v":""},{"$f":"IFERROR(INDEX(Базаданных[Клиент],MATCH(ROWS($R$2:Базаданных[[#This Row],[Индекс]]),Базаданных[Индекс],0)),\"\")","v":""},{"$f":"NOT(ISERROR(SEARCH('Форма ввода'!$C$9,Базаданных[[#This Row],[Чей клиент]])))","v":true},{"$f":"IF(Базаданных[[#This Row],[Статус2]],COUNTIF($T$2:Базаданных[[#This Row],[Статус2]],TRUE),\"\")","v":10},{"$f":"IFERROR(INDEX(Базаданных[Чей клиент],MATCH(ROWS($U$2:Базаданных[[#This Row],[Индекс3]]),Базаданных[Индекс3],0)),\"\")","v":"Пименов Алексей"}]
["2019-04-01",43567.777834143519,12,"пятница","Апрель","2019",10732,"-",0,"-",0,"-",0,"-","Пименов Алексей","Алексей Бердников \"Титан\" (Киров)",{"$f":"NOT(ISERROR(SEARCH('Форма ввода'!$C$5,Базаданных[[#This Row],[Клиент]])))","v":false},{"$f":"IF(Базаданных[[#This Row],[Статус]],COUNTIF($Q$2:Базаданных[[#This Row],[Статус]],TRUE),\"\")","v":""},{"$f":"IFERROR(INDEX(Базаданных[Клиент],MATCH(ROWS($R$2:Базаданных[[#This Row],[Индекс]]),Базаданных[Индекс],0)),\"\")","v":""},{"$f":"NOT(ISERROR(SEARCH('Форма ввода'!$C$9,Базаданных[[#This Row],[Чей клиент]])))","v":true},{"$f":"IF(Базаданных[[#This Row],[Статус2]],COUNTIF($T$2:Базаданных[[#This Row],[Статус2]],TRUE),\"\")","v":11},{"$f":"IFERROR(INDEX(Базаданных[Чей клиент],MATCH(ROWS($U$2:Базаданных[[#This Row],[Индекс3]]),Базаданных[Индекс3],0)),\"\")","v":"Пименов Алексей"}]
["2019-04-01",43567.778109953702,12,"пятница","Апрель","2019",475,"-",0,"-",0,"-",0,"-","Пименов Алексей","Олег Гетманец (Ростов)",{"$f":"NOT(ISERROR(SEARCH('Форма ввода'!$C$5,Базаданных[[#This Row],[Клиент]])))","v":false},{"$f":"IF(Базаданных[[#This Row],[Статус]],COUNTIF($Q$2:Базаданных[[#This Row],[Статус]],TRUE),\"\")","v":""},{"$f":"IFERROR(INDEX(Базаданных[Клиент],MATCH(ROWS($R$2:Базаданных[[#This Row],[Индекс]]),Базаданных[Индекс],0)),\"\")","v":""},{"$f":"NOT(ISERROR(SEARCH('Форма ввода'!$C$9,Базаданных[[#This Row],[Чей клиент]])))","v":true},{"$f":"IF(Базаданных[[#This Row],[Статус2]],COUNTIF($T$2:Базаданных[[#This Row],[Статус2]],TRUE),\"\")","v":12},{"$f":"IFERROR(INDEX(Базаданных[Чей клиент],MATCH(ROWS($U$2:Базаданных[[#This Row],[Индекс3]]),Базаданных[Индекс3],0)),\"\")","v":"Пименов Алексей"}]
["2019-04-01",43567.778473842591,12,"пятница","Апрель","2019",64620,"-",0,"-",0,"-",0,"-","Пименов Алексей","Пименов Алексей (АлексСтор)",{"$f":"NOT(ISERROR(SEARCH('Форма ввода'!$C$5,Базаданных[[#This Row],[Клиент]])))","v":false},{"$f":"IF(Базаданных[[#This Row],[Статус]],COUNTIF($Q$2:Базаданных[[#This Row],[Статус]],TRUE),\"\")","v":""},{"$f":"IFERROR(INDEX(Базаданных[Клиент],MATCH(ROWS($R$2:Базаданных[[#This Row],[Индекс]]),Базаданных[Индекс],0)),\"\")","v":""},{"$f":"NOT(ISERROR(SEARCH('Форма ввода'!$C$9,Базаданных[[#This Row],[Чей клиент]])))","v":true},{"$f":"IF(Базаданных[[#This Row],[Статус2]],COUNTIF($T$2:Базаданных[[#This Row],[Статус2]],TRUE),\"\")","v":13},{"$f":"IFERROR(INDEX(Базаданных[Чей клиент],MATCH(ROWS($U$2:Базаданных[[#This Row],[Индекс3]]),Базаданных[Индекс3],0)),\"\")","v":"Пименов Алексей"}]
["2019-04-01",43567.778741203707,12,"пятница","Апрель","2019",5370,"-",0,"-",0,"-",0,"-","Пименов Алексей","Венера (Нижний Новгород)",{"$f":"NOT(ISERROR(SEARCH('Форма ввода'!$C$5,Базаданных[[#This Row],[Клиент]])))","v":false},{"$f":"IF(Базаданных[[#This Row],[Статус]],COUNTIF($Q$2:Базаданных[[#This Row],[Статус]],TRUE),\"\")","v":""},{"$f":"IFERROR(INDEX(Базаданных[Клиент],MATCH(ROWS($R$2:Базаданных[[#This Row],[Индекс]]),Базаданных[Индекс],0)),\"\")","v":""},{"$f":"NOT(ISERROR(SEARCH('Форма ввода'!$C$9,Базаданных[[#This Row],[Чей клиент]])))","v":true},{"$f":"IF(Базаданных[[#This Row],[Статус2]],COUNTIF($T$2:Базаданных[[#This Row],[Статус2]],TRUE),\"\")","v":14},{"$f":"IFERROR(INDEX(Базаданных[Чей клиент],MATCH(ROWS($U$2:Базаданных[[#This Row],[Индекс3]]),Базаданных[Индекс3],0)),\"\")","v":"Пименов Алексей"}]
["2019-04-01",43567.779061921297,12,"пятница","Апрель","2019",1500,"-",0,"-",0,"-",0,"-","Пименов Алексей","Альфатек ООО (Комтехнолоджи Самара)",{"$f":"NOT(ISERROR(SEARCH('Форма ввода'!$C$5,Базаданных[[#This Row],[Клиент]])))","v":false},{"$f":"IF(Базаданных[[#This Row],[Статус]],COUNTIF($Q$2:Базаданных[[#This Row],[Статус]],TRUE),\"\")","v":""},{"$f":"IFERROR(INDEX(Базаданных[Клиент],MATCH(ROWS($R$2:Базаданных[[#This Row],[Индекс]]),Базаданных[Индекс],0)),\"\")","v":""},{"$f":"NOT(ISERROR(SEARCH('Форма ввода'!$C$9,Базаданных[[#This Row],[Чей клиент]])))","v":true},{"$f":"IF(Базаданных[[#This Row],[Статус2]],COUNTIF($T$2:Базаданных[[#This Row],[Статус2]],TRUE),\"\")","v":15},{"$f":"IFERROR(INDEX(Базаданных[Чей клиент],MATCH(ROWS($U$2:Базаданных[[#This Row],[Индекс3]]),Базаданных[Индекс3],0)),\"\")","v":"Пименов Алексей"}]
["2019-04-01",43567.779373958336,12,"пятница","Апрель","2019",200,"-",0,"-",0,"-",0,"-","Пименов Алексей","КМТ Сервис (Клин)",{"$f":"NOT(ISERROR(SEARCH('Форма ввода'!$C$5,Базаданных[[#This Row],[Клиент]])))","v":false},{"$f":"IF(Базаданных[[#This Row],[Статус]],COUNTIF($Q$2:Базаданных[[#This Row],[Статус]],TRUE),\"\")","v":""},{"$f":"IFERROR(INDEX(Базаданных[Клиент],MATCH(ROWS($R$2:Базаданных[[#This Row],[Индекс]]),Базаданных[Индекс],0)),\"\")","v":""},{"$f":"NOT(ISERROR(SEARCH('Форма ввода'!$C$9,Базаданных[[#This Row],[Чей клиент]])))","v":true},{"$f":"IF(Базаданных[[#This Row],[Статус2]],COUNTIF($T$2:Базаданных[[#This Row],[Статус2]],TRUE),\"\")","v":16},{"$f":"IFERROR(INDEX(Базаданных[Чей клиент],MATCH(ROWS($U$2:Базаданных[[#This Row],[Индекс3]]),Базаданных[Индекс3],0)),\"\")","v":"Пименов Алексей"}]
["2019-04-01",43567.779649884258,12,"пятница","Апрель","2019",130,"-",0,"-",0,"-",0,"-","Пименов Алексей","Самвел (Нижний Новгнород)",{"$f":"NOT(ISERROR(SEARCH('Форма ввода'!$C$5,Базаданных[[#This Row],[Клиент]])))","v":false},{"$f":"IF(Базаданных[[#This Row],[Статус]],COUNTIF($Q$2:Базаданных[[#This Row],[Статус]],TRUE),\"\")","v":""},{"$f":"IFERROR(INDEX(Базаданных[Клиент],MATCH(ROWS($R$2:Базаданных[[#This Row],[Индекс]]),Базаданных[Индекс],0)),\"\")","v":""},{"$f":"NOT(ISERROR(SEARCH('Форма ввода'!$C$9,Базаданных[[#This Row],[Чей клиент]])))","v":true},{"$f":"IF(Базаданных[[#This Row],[Статус2]],COUNTIF($T$2:Базаданных[[#This Row],[Статус2]],TRUE),\"\")","v":17},{"$f":"IFERROR(INDEX(Базаданных[Чей клиент],MATCH(ROWS($U$2:Базаданных[[#This Row],[Индекс3]]),Базаданных[Индекс3],0)),\"\")","v":"Пименов Алексей"}]
["2019-04-01",43567.779920138892,12,"пятница","Апрель","2019",24230,"-",0,"-",0,"-",0,"-","Пименов Алексей","Скупка Розовая Жуковский",{"$f":"NOT(ISERROR(SEARCH('Форма ввода'!$C$5,Базаданных[[#This Row],[Клиент]])))","v":false},{"$f":"IF(Базаданных[[#This Row],[Статус]],COUNTIF($Q$2:Базаданных[[#This Row],[Статус]],TRUE),\"\")","v":""},{"$f":"IFERROR(INDEX(Базаданных[Клиент],MATCH(ROWS($R$2:Базаданных[[#This Row],[Индекс]]),Базаданных[Индекс],0)),\"\")","v":""},{"$f":"NOT(ISERROR(SEARCH('Форма ввода'!$C$9,Базаданных[[#This Row],[Чей клиент]])))","v":true},{"$f":"IF(Базаданных[[#This Row],[Статус2]],COUNTIF($T$2:Базаданных[[#This Row],[Статус2]],TRUE),\"\")","v":18},{"$f":"IFERROR(INDEX(Базаданных[Чей клиент],MATCH(ROWS($U$2:Базаданных[[#This Row],[Индекс3]]),Базаданных[Индекс3],0)),\"\")","v":"Пименов Алексей"}]
["2019-04-01",43567.78395138889,12,"пятница","Апрель","2019",100,"-",0,"-",0,"-",0,"-","Пименов Алексей","Дмитрий (Комиссионка Наро-Фоминск)",{"$f":"NOT(ISERROR(SEARCH('Форма ввода'!$C$5,Базаданных[[#This Row],[Клиент]])))","v":false},{"$f":"IF(Базаданных[[#This Row],[Статус]],COUNTIF($Q$2:Базаданных[[#This Row],[Статус]],TRUE),\"\")","v":""},{"$f":"IFERROR(INDEX(Базаданных[Клиент],MATCH(ROWS($R$2:Базаданных[[#This Row],[Индекс]]),Базаданных[Индекс],0)),\"\")","v":""},{"$f":"NOT(ISERROR(SEARCH('Форма ввода'!$C$9,Базаданных[[#This Row],[Чей клиент]])))","v":true},{"$f":"IF(Базаданных[[#This Row],[Статус2]],COUNTIF($T$2:Базаданных[[#This Row],[Статус2]],TRUE),\"\")","v":19},{"$f":"IFERROR(INDEX(Базаданных[Чей клиент],MATCH(ROWS($U$2:Базаданных[[#This Row],[Индекс3]]),Базаданных[Индекс3],0)),\"\")","v":"Пименов Алексей"}]
["2019-04-01",43567.784342361112,12,"пятница","Апрель","2019",360,"-",0,"-",0,"-",0,"-","Пименов Алексей","Александр (Сызрань)",{"$f":"NOT(ISERROR(SEARCH('Форма ввода'!$C$5,Базаданных[[#This Row],[Клиент]])))","v":false},{"$f":"IF(Базаданных[[#This Row],[Статус]],COUNTIF($Q$2:Базаданных[[#This Row],[Статус]],TRUE),\"\")","v":""},{"$f":"IFERROR(INDEX(Базаданных[Клиент],MATCH(ROWS($R$2:Базаданных[[#This Row],[Индекс]]),Базаданных[Индекс],0)),\"\")","v":""},{"$f":"NOT(ISERROR(SEARCH('Форма ввода'!$C$9,Базаданных[[#This Row],[Чей клиент]])))","v":true},{"$f":"IF(Базаданных[[#This Row],[Статус2]],COUNTIF($T$2:Базаданных[[#This Row],[Статус2]],TRUE),\"\")","v":20},{"$f":"IFERROR(INDEX(Базаданных[Чей клиент],MATCH(ROWS($U$2:Базаданных[[#This Row],[Индекс3]]),Базаданных[Индекс3],0)),\"\")","v":"Пименов Алексей"}]
["2019-04-01",43567.784625347223,12,"пятница","Апрель","2019",80,"-",0,"-",0,"-",0,"-","Пименов Алексей","Максим Калининград",{"$f":"NOT(ISERROR(SEARCH('Форма ввода'!$C$5,Базаданных[[#This Row],[Клиент]])))","v":false},{"$f":"IF(Базаданных[[#This Row],[Статус]],COUNTIF($Q$2:Базаданных[[#This Row],[Статус]],TRUE),\"\")","v":""},{"$f":"IFERROR(INDEX(Базаданных[Клиент],MATCH(ROWS($R$2:Базаданных[[#This Row],[Индекс]]),Базаданных[Индекс],0)),\"\")","v":""},{"$f":"NOT(ISERROR(SEARCH('Форма ввода'!$C$9,Базаданных[[#This Row],[Чей клиент]])))","v":true},{"$f":"IF(Базаданных[[#This Row],[Статус2]],COUNTIF($T$2:Базаданных[[#This Row],[Статус2]],TRUE),\"\")","v":21},{"$f":"IFERROR(INDEX(Базаданных[Чей клиент],MATCH(ROWS($U$2:Базаданных[[#This Row],[Индекс3]]),Базаданных[Индекс3],0)),\"\")","v":"Пименов Алексей"}]
["2019-04-01",43567.785165624999,12,"пятница","Апрель","2019",230,"-",0,"-",0,"-",0,"-","Пименов Алексей","Антон Кимры",{"$f":"NOT(ISERROR(SEARCH('Форма ввода'!$C$5,Базаданных[[#This Row],[Клиент]])))","v":false},{"$f":"IF(Базаданных[[#This Row],[Статус]],COUNTIF($Q$2:Базаданных[[#This Row],[Статус]],TRUE),\"\")","v":""},{"$f":"IFERROR(INDEX(Базаданных[Клиент],MATCH(ROWS($R$2:Базаданных[[#This Row],[Индекс]]),Базаданных[Индекс],0)),\"\")","v":""},{"$f":"NOT(ISERROR(SEARCH('Форма ввода'!$C$9,Базаданных[[#This Row],[Чей клиент]])))","v":true},{"$f":"IF(Базаданных[[#This Row],[Статус2]],COUNTIF($T$2:Базаданных[[#This Row],[Статус2]],TRUE),\"\")","v":22},{"$f":"IFERROR(INDEX(Базаданных[Чей клиент],MATCH(ROWS($U$2:Базаданных[[#This Row],[Индекс3]]),Базаданных[Индекс3],0)),\"\")","v":"Пименов Алексей"}]
["2019-04-01",43567.785563310186,12,"пятница","Апрель","2019",1180,"-",0,"-",0,"-",0,"-","Пименов Алексей","Игорь (Люблино)",{"$f":"NOT(ISERROR(SEARCH('Форма ввода'!$C$5,Базаданных[[#This Row],[Клиент]])))","v":false},{"$f":"IF(Базаданных[[#This Row],[Статус]],COUNTIF($Q$2:Базаданных[[#This Row],[Статус]],TRUE),\"\")","v":""},{"$f":"IFERROR(INDEX(Базаданных[Клиент],MATCH(ROWS($R$2:Базаданных[[#This Row],[Индекс]]),Базаданных[Индекс],0)),\"\")","v":""},{"$f":"NOT(ISERROR(SEARCH('Форма ввода'!$C$9,Базаданных[[#This Row],[Чей клиент]])))","v":true},{"$f":"IF(Базаданных[[#This Row],[Статус2]],COUNTIF($T$2:Базаданных[[#This Row],[Статус2]],TRUE),\"\")","v":23},{"$f":"IFERROR(INDEX(Базаданных[Чей клиент],MATCH(ROWS($U$2:Базаданных[[#This Row],[Индекс3]]),Базаданных[Индекс3],0)),\"\")","v":"Пименов Алексей"}]
["2019-04-01",43567.785818865741,12,"пятница","Апрель","2019",3220,"-",0,"-",0,"-",0,"-","Пименов Алексей","Сергей (Тольятти) Победа",{"$f":"NOT(ISERROR(SEARCH('Форма ввода'!$C$5,Базаданных[[#This Row],[Клиент]])))","v":false},{"$f":"IF(Базаданных[[#This Row],[Статус]],COUNTIF($Q$2:Базаданных[[#This Row],[Статус]],TRUE),\"\")","v":""},{"$f":"IFERROR(INDEX(Базаданных[Клиент],MATCH(ROWS($R$2:Базаданных[[#This Row],[Индекс]]),Базаданных[Индекс],0)),\"\")","v":""},{"$f":"NOT(ISERROR(SEARCH('Форма ввода'!$C$9,Базаданных[[#This Row],[Чей клиент]])))","v":true},{"$f":"IF(Базаданных[[#This Row],[Статус2]],COUNTIF($T$2:Базаданных[[#This Row],[Статус2]],TRUE),\"\")","v":24},{"$f":"IFERROR(INDEX(Базаданных[Чей клиент],MATCH(ROWS($U$2:Базаданных[[#This Row],[Индекс3]]),Базаданных[Индекс3],0)),\"\")","v":"Пименов Алексей"}]
["2019-04-01",43567.786153125002,12,"пятница","Апрель","2019",6650,"-",0,"-",0,"-",0,"-","Пименов Алексей","Алик (Горбушка)",{"$f":"NOT(ISERROR(SEARCH('Форма ввода'!$C$5,Базаданных[[#This Row],[Клиент]])))","v":false},{"$f":"IF(Базаданных[[#This Row],[Статус]],COUNTIF($Q$2:Базаданных[[#This Row],[Статус]],TRUE),\"\")","v":""},{"$f":"IFERROR(INDEX(Базаданных[Клиент],MATCH(ROWS($R$2:Базаданных[[#This Row],[Индекс]]),Базаданных[Индекс],0)),\"\")","v":""},{"$f":"NOT(ISERROR(SEARCH('Форма ввода'!$C$9,Базаданных[[#This Row],[Чей клиент]])))","v":true},{"$f":"IF(Базаданных[[#This Row],[Статус2]],COUNTIF($T$2:Базаданных[[#This Row],[Статус2]],TRUE),\"\")","v":25},{"$f":"IFERROR(INDEX(Базаданных[Чей клиент],MATCH(ROWS($U$2:Базаданных[[#This Row],[Индекс3]]),Базаданных[Индекс3],0)),\"\")","v":"Пименов Алексей"}]
["2019-04-01",43567.786460069445,12,"пятница","Апрель","2019",530,"-",0,"-",0,"-",0,"-","Пименов Алексей","Звонок Нижний Новгород",{"$f":"NOT(ISERROR(SEARCH('Форма ввода'!$C$5,Базаданных[[#This Row],[Клиент]])))","v":false},{"$f":"IF(Базаданных[[#This Row],[Статус]],COUNTIF($Q$2:Базаданных[[#This Row],[Статус]],TRUE),\"\")","v":""},{"$f":"IFERROR(INDEX(Базаданных[Клиент],MATCH(ROWS($R$2:Базаданных[[#This Row],[Индекс]]),Базаданных[Индекс],0)),\"\")","v":""},{"$f":"NOT(ISERROR(SEARCH('Форма ввода'!$C$9,Базаданных[[#This Row],[Чей клиент]])))","v":true},{"$f":"IF(Базаданных[[#This Row],[Статус2]],COUNTIF($T$2:Базаданных[[#This Row],[Статус2]],TRUE),\"\")","v":26},{"$f":"IFERROR(INDEX(Базаданных[Чей клиент],MATCH(ROWS($U$2:Базаданных[[#This Row],[Индекс3]]),Базаданных[Индекс3],0)),\"\")","v":"Пименов Алексей"}]
["2019-04-01",43567.786796990738,12,"пятница","Апрель","2019",50,"-",0,"-",0,"-",0,"-","Пименов Алексей","Алексей Николаев (Псков)",{"$f":"NOT(ISERROR(SEARCH('Форма ввода'!$C$5,Базаданных[[#This Row],[Клиент]])))","v":false},{"$f":"IF(Базаданных[[#This Row],[Статус]],COUNTIF($Q$2:Базаданных[[#This Row],[Статус]],TRUE),\"\")","v":""},{"$f":"IFERROR(INDEX(Базаданных[Клиент],MATCH(ROWS($R$2:Базаданных[[#This Row],[Индекс]]),Базаданных[Индекс],0)),\"\")","v":""},{"$f":"NOT(ISERROR(SEARCH('Форма ввода'!$C$9,Базаданных[[#This Row],[Чей клиент]])))","v":true},{"$f":"IF(Базаданных[[#This Row],[Статус2]],COUNTIF($T$2:Базаданных[[#This Row],[Статус2]],TRUE),\"\")","v":27},{"$f":"IFERROR(INDEX(Базаданных[Чей клиент],MATCH(ROWS($U$2:Базаданных[[#This Row],[Индекс3]]),Базаданных[Индекс3],0)),\"\")","v":"Пименов Алексей"}]
["2019-04-01",43567.787270601853,12,"пятница","Апрель","2019",9000,"-",0,"-",0,"-",0,"-","Пименов Алексей","Роман Митино (430-роутеры)",{"$f":"NOT(ISERROR(SEARCH('Форма ввода'!$C$5,Базаданных[[#This Row],[Клиент]])))","v":false},{"$f":"IF(Базаданных[[#This Row],[Статус]],COUNTIF($Q$2:Базаданных[[#This Row],[Статус]],TRUE),\"\")","v":""},{"$f":"IFERROR(INDEX(Базаданных[Клиент],MATCH(ROWS($R$2:Базаданных[[#This Row],[Индекс]]),Базаданных[Индекс],0)),\"\")","v":""},{"$f":"NOT(ISERROR(SEARCH('Форма ввода'!$C$9,Базаданных[[#This Row],[Чей клиент]])))","v":true},{"$f":"IF(Базаданных[[#This Row],[Статус2]],COUNTIF($T$2:Базаданных[[#This Row],[Статус2]],TRUE),\"\")","v":28},{"$f":"IFERROR(INDEX(Базаданных[Чей клиент],MATCH(ROWS($U$2:Базаданных[[#This Row],[Индекс3]]),Базаданных[Индекс3],0)),\"\")","v":"Пименов Алексей"}]
["2019-04-01",43567.78768587963,12,"пятница","Апрель","2019",100900,"-",0,"-",0,"-",0,"-","Пименов Алексей","Игорь Костяк (Киров Вятка)",{"$f":"NOT(ISERROR(SEARCH('Форма ввода'!$C$5,Базаданных[[#This Row],[Клиент]])))","v":false},{"$f":"IF(Базаданных[[#This Row],[Статус]],COUNTIF($Q$2:Базаданных[[#This Row],[Статус]],TRUE),\"\")","v":""},{"$f":"IFERROR(INDEX(Базаданных[Клиент],MATCH(ROWS($R$2:Базаданных[[#This Row],[Индекс]]),Базаданных[Индекс],0)),\"\")","v":""},{"$f":"NOT(ISERROR(SEARCH('Форма ввода'!$C$9,Базаданных[[#This Row],[Чей клиент]])))","v":true},{"$f":"IF(Базаданных[[#This Row],[Статус2]],COUNTIF($T$2:Базаданных[[#This Row],[Статус2]],TRUE),\"\")","v":29},{"$f":"IFERROR(INDEX(Базаданных[Чей клиент],MATCH(ROWS($U$2:Базаданных[[#This Row],[Индекс3]]),Базаданных[Индекс3],0)),\"\")","v":"Пименов Алексей"}]
["2019-04-01",43567.798119328705,12,"пятница","Апрель","2019",1700,"-",0,"-",0,"-",0,"-","Пименов Алексей","Михаил Рязань",{"$f":"NOT(ISERROR(SEARCH('Форма ввода'!$C$5,Базаданных[[#This Row],[Клиент]])))","v":false},{"$f":"IF(Базаданных[[#This Row],[Статус]],COUNTIF($Q$2:Базаданных[[#This Row],[Статус]],TRUE),\"\")","v":""},{"$f":"IFERROR(INDEX(Базаданных[Клиент],MATCH(ROWS($R$2:Базаданных[[#This Row],[Индекс]]),Базаданных[Индекс],0)),\"\")","v":""},{"$f":"NOT(ISERROR(SEARCH('Форма ввода'!$C$9,Базаданных[[#This Row],[Чей клиент]])))","v":true},{"$f":"IF(Базаданных[[#This Row],[Статус2]],COUNTIF($T$2:Базаданных[[#This Row],[Статус2]],TRUE),\"\")","v":30},{"$f":"IFERROR(INDEX(Базаданных[Чей клиент],MATCH(ROWS($U$2:Базаданных[[#This Row],[Индекс3]]),Базаданных[Индекс3],0)),\"\")","v":"Пименов Алексей"}]
["2019-04-01",43567.79842673611,12,"пятница","Апрель","2019",670,"-",0,"-",0,"-",0,"-","Пименов Алексей","Дмитрий Arm Device",{"$f":"NOT(ISERROR(SEARCH('Форма ввода'!$C$5,Базаданных[[#This Row],[Клиент]])))","v":false},{"$f":"IF(Базаданных[[#This Row],[Статус]],COUNTIF($Q$2:Базаданных[[#This Row],[Статус]],TRUE),\"\")","v":""},{"$f":"IFERROR(INDEX(Базаданных[Клиент],MATCH(ROWS($R$2:Базаданных[[#This Row],[Индекс]]),Базаданных[Индекс],0)),\"\")","v":""},{"$f":"NOT(ISERROR(SEARCH('Форма ввода'!$C$9,Базаданных[[#This Row],[Чей клиент]])))","v":true},{"$f":"IF(Базаданных[[#This Row],[Статус2]],COUNTIF($T$2:Базаданных[[#This Row],[Статус2]],TRUE),\"\")","v":31},{"$f":"IFERROR(INDEX(Базаданных[Чей клиент],MATCH(ROWS($U$2:Базаданных[[#This Row],[Индекс3]]),Базаданных[Индекс3],0)),\"\")","v":"Пименов Алексей"}]
["2019-04-01",43567.798735532408,12,"пятница","Апрель","2019",6450,"-",0,"-",0,"-",0,"-","Пименов Алексей","ИП Ильина (Кемерово)",{"$f":"NOT(ISERROR(SEARCH('Форма ввода'!$C$5,Базаданных[[#This Row],[Клиент]])))","v":false},{"$f":"IF(Базаданных[[#This Row],[Статус]],COUNTIF($Q$2:Базаданных[[#This Row],[Статус]],TRUE),\"\")","v":""},{"$f":"IFERROR(INDEX(Базаданных[Клиент],MATCH(ROWS($R$2:Базаданных[[#This Row],[Индекс]]),Базаданных[Индекс],0)),\"\")","v":""},{"$f":"NOT(ISERROR(SEARCH('Форма ввода'!$C$9,Базаданных[[#This Row],[Чей клиент]])))","v":true},{"$f":"IF(Базаданных[[#This Row],[Статус2]],COUNTIF($T$2:Базаданных[[#This Row],[Статус2]],TRUE),\"\")","v":32},{"$f":"IFERROR(INDEX(Базаданных[Чей клиент],MATCH(ROWS($U$2:Базаданных[[#This Row],[Индекс3]]),Базаданных[Индекс3],0)),\"\")","v":"Пименов Алексей"}]
["2019-04-01",43567.799052546296,12,"пятница","Апрель","2019",58010,"-",0,"-",0,"-",0,"-","Нерсесов Давид","Нерсесов Давид ( AlexStore)",{"$f":"NOT(ISERROR(SEARCH('Форма ввода'!$C$5,Базаданных[[#This Row],[Клиент]])))","v":false},{"$f":"IF(Базаданных[[#This Row],[Статус]],COUNTIF($Q$2:Базаданных[[#This Row],[Статус]],TRUE),\"\")","v":""},{"$f":"IFERROR(INDEX(Базаданных[Клиент],MATCH(ROWS($R$2:Базаданных[[#This Row],[Индекс]]),Базаданных[Индекс],0)),\"\")","v":""},{"$f":"NOT(ISERROR(SEARCH('Форма ввода'!$C$9,Базаданных[[#This Row],[Чей клиент]])))","v":true},{"$f":"IF(Базаданных[[#This Row],[Статус2]],COUNTIF($T$2:Базаданных[[#This Row],[Статус2]],TRUE),\"\")","v":33},{"$f":"IFERROR(INDEX(Базаданных[Чей клиент],MATCH(ROWS($U$2:Базаданных[[#This Row],[Индекс3]]),Базаданных[Индекс3],0)),\"\")","v":"Нерсесов Давид"}]
["2019-04-01",43567.799310300928,12,"пятница","Апрель","2019",350,"-",0,"-",0,"-",0,"-","Нерсесов Давид","Скупка Радик Москва",{"$f":"NOT(ISERROR(SEARCH('Форма ввода'!$C$5,Базаданных[[#This Row],[Клиент]])))","v":false},{"$f":"IF(Базаданных[[#This Row],[Статус]],COUNTIF($Q$2:Базаданных[[#This Row],[Статус]],TRUE),\"\")","v":""},{"$f":"IFERROR(INDEX(Базаданных[Клиент],MATCH(ROWS($R$2:Базаданных[[#This Row],[Индекс]]),Базаданных[Индекс],0)),\"\")","v":""},{"$f":"NOT(ISERROR(SEARCH('Форма ввода'!$C$9,Базаданных[[#This Row],[Чей клиент]])))","v":true},{"$f":"IF(Базаданных[[#This Row],[Статус2]],COUNTIF($T$2:Базаданных[[#This Row],[Статус2]],TRUE),\"\")","v":34},{"$f":"IFERROR(INDEX(Базаданных[Чей клиент],MATCH(ROWS($U$2:Базаданных[[#This Row],[Индекс3]]),Базаданных[Индекс3],0)),\"\")","v":"Нерсесов Давид"}]
["2019-04-01",43567.800732175929,12,"пятница","Апрель","2019",20780,"-",0,"-",0,"-",0,"-","Нерсесов Давид","Скупка Радик Москва",{"$f":"NOT(ISERROR(SEARCH('Форма ввода'!$C$5,Базаданных[[#This Row],[Клиент]])))","v":false},{"$f":"IF(Базаданных[[#This Row],[Статус]],COUNTIF($Q$2:Базаданных[[#This Row],[Статус]],TRUE),\"\")","v":""},{"$f":"IFERROR(INDEX(Базаданных[Клиент],MATCH(ROWS($R$2:Базаданных[[#This Row],[Индекс]]),Базаданных[Индекс],0)),\"\")","v":""},{"$f":"NOT(ISERROR(SEARCH('Форма ввода'!$C$9,Базаданных[[#This Row],[Чей клиент]])))","v":true},{"$f":"IF(Базаданных[[#This Row],[Статус2]],COUNTIF($T$2:Базаданных[[#This Row],[Статус2]],TRUE),\"\")","v":35},{"$f":"IFERROR(INDEX(Базаданных[Чей клиент],MATCH(ROWS($U$2:Базаданных[[#This Row],[Индекс3]]),Базаданных[Индекс3],0)),\"\")","v":"Нерсесов Давид"}]
["2019-04-01",43567.801001851854,12,"пятница","Апрель","2019",120,"-",0,"-",0,"-",0,"-","Нерсесов Давид","Роман (Л-64 Савеловский)",{"$f":"NOT(ISERROR(SEARCH('Форма ввода'!$C$5,Базаданных[[#This Row],[Клиент]])))","v":false},{"$f":"IF(Базаданных[[#This Row],[Статус]],COUNTIF($Q$2:Базаданных[[#This Row],[Статус]],TRUE),\"\")","v":""},{"$f":"IFERROR(INDEX(Базаданных[Клиент],MATCH(ROWS($R$2:Базаданных[[#This Row],[Индекс]]),Базаданных[Индекс],0)),\"\")","v":""},{"$f":"NOT(ISERROR(SEARCH('Форма ввода'!$C$9,Базаданных[[#This Row],[Чей клиент]])))","v":true},{"$f":"IF(Базаданных[[#This Row],[Статус2]],COUNTIF($T$2:Базаданных[[#This Row],[Статус2]],TRUE),\"\")","v":36},{"$f":"IFERROR(INDEX(Базаданных[Чей клиент],MATCH(ROWS($U$2:Базаданных[[#This Row],[Индекс3]]),Базаданных[Индекс3],0)),\"\")","v":"Нерсесов Давид"}]
["2019-04-01",43567.801329629627,12,"пятница","Апрель","2019",2365,"-",0,"-",0,"-",0,"-","Нерсесов Давид","Кирил (Савок  П67-П77) ",{"$f":"NOT(ISERROR(SEARCH('Форма ввода'!$C$5,Базаданных[[#This Row],[Клиент]])))","v":false},{"$f":"IF(Базаданных[[#This Row],[Статус]],COUNTIF($Q$2:Базаданных[[#This Row],[Статус]],TRUE),\"\")","v":""},{"$f":"IFERROR(INDEX(Базаданных[Клиент],MATCH(ROWS($R$2:Базаданных[[#This Row],[Индекс]]),Базаданных[Индекс],0)),\"\")","v":""},{"$f":"NOT(ISERROR(SEARCH('Форма ввода'!$C$9,Базаданных[[#This Row],[Чей клиент]])))","v":true},{"$f":"IF(Базаданных[[#This Row],[Статус2]],COUNTIF($T$2:Базаданных[[#This Row],[Статус2]],TRUE),\"\")","v":37},{"$f":"IFERROR(INDEX(Базаданных[Чей клиент],MATCH(ROWS($U$2:Базаданных[[#This Row],[Индекс3]]),Базаданных[Индекс3],0)),\"\")","v":"Нерсесов Давид"}]
["2019-04-01",43567.801586574074,12,"пятница","Апрель","2019",32750,"-",0,"-",0,"-",0,"-","Нерсесов Давид","Денис (Теплый стан)",{"$f":"NOT(ISERROR(SEARCH('Форма ввода'!$C$5,Базаданных[[#This Row],[Клиент]])))","v":false},{"$f":"IF(Базаданных[[#This Row],[Статус]],COUNTIF($Q$2:Базаданных[[#This Row],[Статус]],TRUE),\"\")","v":""},{"$f":"IFERROR(INDEX(Базаданных[Клиент],MATCH(ROWS($R$2:Базаданных[[#This Row],[Индекс]]),Базаданных[Индекс],0)),\"\")","v":""},{"$f":"NOT(ISERROR(SEARCH('Форма ввода'!$C$9,Базаданных[[#This Row],[Чей клиент]])))","v":true},{"$f":"IF(Базаданных[[#This Row],[Статус2]],COUNTIF($T$2:Базаданных[[#This Row],[Статус2]],TRUE),\"\")","v":38},{"$f":"IFERROR(INDEX(Базаданных[Чей клиент],MATCH(ROWS($U$2:Базаданных[[#This Row],[Индекс3]]),Базаданных[Индекс3],0)),\"\")","v":"Нерсесов Давид"}]
["2019-04-01",43567.801976157411,12,"пятница","Апрель","2019",5400,"-",0,"-",0,"-",0,"-","Нерсесов Давид","Нуридин",{"$f":"NOT(ISERROR(SEARCH('Форма ввода'!$C$5,Базаданных[[#This Row],[Клиент]])))","v":false},{"$f":"IF(Базаданных[[#This Row],[Статус]],COUNTIF($Q$2:Базаданных[[#This Row],[Статус]],TRUE),\"\")","v":""},{"$f":"IFERROR(INDEX(Базаданных[Клиент],MATCH(ROWS($R$2:Базаданных[[#This Row],[Индекс]]),Базаданных[Индекс],0)),\"\")","v":""},{"$f":"NOT(ISERROR(SEARCH('Форма ввода'!$C$9,Базаданных[[#This Row],[Чей клиент]])))","v":true},{"$f":"IF(Базаданных[[#This Row],[Статус2]],COUNTIF($T$2:Базаданных[[#This Row],[Статус2]],TRUE),\"\")","v":39},{"$f":"IFERROR(INDEX(Базаданных[Чей клиент],MATCH(ROWS($U$2:Базаданных[[#This Row],[Индекс3]]),Базаданных[Индекс3],0)),\"\")","v":"Нерсесов Давид"}]
["2019-04-01",43568.740889583336,13,"суббота","Апрель","2019",4720,"-",0,"-",0,"-",0,"-","Нерсесов Давид","Надир (К84 Царицино)",{"$f":"NOT(ISERROR(SEARCH('Форма ввода'!$C$5,Базаданных[[#This Row],[Клиент]])))","v":false},{"$f":"IF(Базаданных[[#This Row],[Статус]],COUNTIF($Q$2:Базаданных[[#This Row],[Статус]],TRUE),\"\")","v":""},{"$f":"IFERROR(INDEX(Базаданных[Клиент],MATCH(ROWS($R$2:Базаданных[[#This Row],[Индекс]]),Базаданных[Индекс],0)),\"\")","v":""},{"$f":"NOT(ISERROR(SEARCH('Форма ввода'!$C$9,Базаданных[[#This Row],[Чей клиент]])))","v":true},{"$f":"IF(Базаданных[[#This Row],[Статус2]],COUNTIF($T$2:Базаданных[[#This Row],[Статус2]],TRUE),\"\")","v":40},{"$f":"IFERROR(INDEX(Базаданных[Чей клиент],MATCH(ROWS($U$2:Базаданных[[#This Row],[Индекс3]]),Базаданных[Индекс3],0)),\"\")","v":"Нерсесов Давид"}]
["2019-04-01",43568.741216550923,13,"суббота","Апрель","2019",50100,"-",0,"-",0,"-",0,"-","Хачатрян Араик","Хачатрян Араик (АлексСтор)",{"$f":"NOT(ISERROR(SEARCH('Форма ввода'!$C$5,Базаданных[[#This Row],[Клиент]])))","v":false},{"$f":"IF(Базаданных[[#This Row],[Статус]],COUNTIF($Q$2:Базаданных[[#This Row],[Статус]],TRUE),\"\")","v":""},{"$f":"IFERROR(INDEX(Базаданных[Клиент],MATCH(ROWS($R$2:Базаданных[[#This Row],[Индекс]]),Базаданных[Индекс],0)),\"\")","v":""},{"$f":"NOT(ISERROR(SEARCH('Форма ввода'!$C$9,Базаданных[[#This Row],[Чей клиент]])))","v":true},{"$f":"IF(Базаданных[[#This Row],[Статус2]],COUNTIF($T$2:Базаданных[[#This Row],[Статус2]],TRUE),\"\")","v":41},{"$f":"IFERROR(INDEX(Базаданных[Чей клиент],MATCH(ROWS($U$2:Базаданных[[#This Row],[Индекс3]]),Базаданных[Индекс3],0)),\"\")","v":"Хачатрян Араик"}]
["2019-04-01",43568.742017129633,13,"суббота","Апрель","2019",27850,"-",0,"-",0,"-",0,"-","Филин Сергей","Аслан (Т-23, 18 Савок)",{"$f":"NOT(ISERROR(SEARCH('Форма ввода'!$C$5,Базаданных[[#This Row],[Клиент]])))","v":false},{"$f":"IF(Базаданных[[#This Row],[Статус]],COUNTIF($Q$2:Базаданных[[#This Row],[Статус]],TRUE),\"\")","v":""},{"$f":"IFERROR(INDEX(Базаданных[Клиент],MATCH(ROWS($R$2:Базаданных[[#This Row],[Индекс]]),Базаданных[Индекс],0)),\"\")","v":""},{"$f":"NOT(ISERROR(SEARCH('Форма ввода'!$C$9,Базаданных[[#This Row],[Чей клиент]])))","v":true},{"$f":"IF(Базаданных[[#This Row],[Статус2]],COUNTIF($T$2:Базаданных[[#This Row],[Статус2]],TRUE),\"\")","v":42},{"$f":"IFERROR(INDEX(Базаданных[Чей клиент],MATCH(ROWS($U$2:Базаданных[[#This Row],[Индекс3]]),Базаданных[Индекс3],0)),\"\")","v":"Филин Сергей"}]
["2019-04-01",43568.742856597222,13,"суббота","Апрель","2019",34400,"-",0,"-",0,"-",0,"-","Пименов Алексей","Вачэ (АлексСтор)",{"$f":"NOT(ISERROR(SEARCH('Форма ввода'!$C$5,Базаданных[[#This Row],[Клиент]])))","v":false},{"$f":"IF(Базаданных[[#This Row],[Статус]],COUNTIF($Q$2:Базаданных[[#This Row],[Статус]],TRUE),\"\")","v":""},{"$f":"IFERROR(INDEX(Базаданных[Клиент],MATCH(ROWS($R$2:Базаданных[[#This Row],[Индекс]]),Базаданных[Индекс],0)),\"\")","v":""},{"$f":"NOT(ISERROR(SEARCH('Форма ввода'!$C$9,Базаданных[[#This Row],[Чей клиент]])))","v":true},{"$f":"IF(Базаданных[[#This Row],[Статус2]],COUNTIF($T$2:Базаданных[[#This Row],[Статус2]],TRUE),\"\")","v":43},{"$f":"IFERROR(INDEX(Базаданных[Чей клиент],MATCH(ROWS($U$2:Базаданных[[#This Row],[Индекс3]]),Базаданных[Индекс3],0)),\"\")","v":"Пименов Алексей"}]
["2019-04-01",43568.743928240743,13,"суббота","Апрель","2019",550,"-",0,"-",0,"-",0,"-","Гречихина Юля","Илья (Коммисионка Домодедово)",{"$f":"NOT(ISERROR(SEARCH('Форма ввода'!$C$5,Базаданных[[#This Row],[Клиент]])))","v":false},{"$f":"IF(Базаданных[[#This Row],[Статус]],COUNTIF($Q$2:Базаданных[[#This Row],[Статус]],TRUE),\"\")","v":""},{"$f":"IFERROR(INDEX(Базаданных[Клиент],MATCH(ROWS($R$2:Базаданных[[#This Row],[Индекс]]),Базаданных[Индекс],0)),\"\")","v":""},{"$f":"NOT(ISERROR(SEARCH('Форма ввода'!$C$9,Базаданных[[#This Row],[Чей клиент]])))","v":true},{"$f":"IF(Базаданных[[#This Row],[Статус2]],COUNTIF($T$2:Базаданных[[#This Row],[Статус2]],TRUE),\"\")","v":44},{"$f":"IFERROR(INDEX(Базаданных[Чей клиент],MATCH(ROWS($U$2:Базаданных[[#This Row],[Индекс3]]),Базаданных[Индекс3],0)),\"\")","v":"Гречихина Юля"}]
["2019-04-01",43568.744171874998,13,"суббота","Апрель","2019",120,"-",0,"-",0,"-",0,"-","Гречихина Юля","Комиссионка Щербинка",{"$f":"NOT(ISERROR(SEARCH('Форма ввода'!$C$5,Базаданных[[#This Row],[Клиент]])))","v":false},{"$f":"IF(Базаданных[[#This Row],[Статус]],COUNTIF($Q$2:Базаданных[[#This Row],[Статус]],TRUE),\"\")","v":""},{"$f":"IFERROR(INDEX(Базаданных[Клиент],MATCH(ROWS($R$2:Базаданных[[#This Row],[Индекс]]),Базаданных[Индекс],0)),\"\")","v":""},{"$f":"NOT(ISERROR(SEARCH('Форма ввода'!$C$9,Базаданных[[#This Row],[Чей клиент]])))","v":true},{"$f":"IF(Базаданных[[#This Row],[Статус2]],COUNTIF($T$2:Базаданных[[#This Row],[Статус2]],TRUE),\"\")","v":45},{"$f":"IFERROR(INDEX(Базаданных[Чей клиент],MATCH(ROWS($U$2:Базаданных[[#This Row],[Индекс3]]),Базаданных[Индекс3],0)),\"\")","v":"Гречихина Юля"}]
["2019-04-01",43568.744872916664,13,"суббота","Апрель","2019",2800,"-",0,"-",0,"-",0,"-","Гречихина Юля","Тигран Рязань и МО",{"$f":"NOT(ISERROR(SEARCH('Форма ввода'!$C$5,Базаданных[[#This Row],[Клиент]])))","v":false},{"$f":"IF(Базаданных[[#This Row],[Статус]],COUNTIF($Q$2:Базаданных[[#This Row],[Статус]],TRUE),\"\")","v":""},{"$f":"IFERROR(INDEX(Базаданных[Клиент],MATCH(ROWS($R$2:Базаданных[[#This Row],[Индекс]]),Базаданных[Индекс],0)),\"\")","v":""},{"$f":"NOT(ISERROR(SEARCH('Форма ввода'!$C$9,Базаданных[[#This Row],[Чей клиент]])))","v":true},{"$f":"IF(Базаданных[[#This Row],[Статус2]],COUNTIF($T$2:Базаданных[[#This Row],[Статус2]],TRUE),\"\")","v":46},{"$f":"IFERROR(INDEX(Базаданных[Чей клиент],MATCH(ROWS($U$2:Базаданных[[#This Row],[Индекс3]]),Базаданных[Индекс3],0)),\"\")","v":"Гречихина Юля"}]
["2019-04-01",43568.745191898146,13,"суббота","Апрель","2019",3510,"-",0,"-",0,"-",0,"-","Гречихина Юля","Александр (Черемушки 2B-15)",{"$f":"NOT(ISERROR(SEARCH('Форма ввода'!$C$5,Базаданных[[#This Row],[Клиент]])))","v":false},{"$f":"IF(Базаданных[[#This Row],[Статус]],COUNTIF($Q$2:Базаданных[[#This Row],[Статус]],TRUE),\"\")","v":""},{"$f":"IFERROR(INDEX(Базаданных[Клиент],MATCH(ROWS($R$2:Базаданных[[#This Row],[Индекс]]),Базаданных[Индекс],0)),\"\")","v":""},{"$f":"NOT(ISERROR(SEARCH('Форма ввода'!$C$9,Базаданных[[#This Row],[Чей клиент]])))","v":true},{"$f":"IF(Базаданных[[#This Row],[Статус2]],COUNTIF($T$2:Базаданных[[#This Row],[Статус2]],TRUE),\"\")","v":47},{"$f":"IFERROR(INDEX(Базаданных[Чей клиент],MATCH(ROWS($U$2:Базаданных[[#This Row],[Индекс3]]),Базаданных[Индекс3],0)),\"\")","v":"Гречихина Юля"}]
["2019-04-01",43568.745558333336,13,"суббота","Апрель","2019",11040,"-",0,"-",0,"-",0,"-","Гречихина Юля","Вадим (Скупка Егорьевск)",{"$f":"NOT(ISERROR(SEARCH('Форма ввода'!$C$5,Базаданных[[#This Row],[Клиент]])))","v":false},{"$f":"IF(Базаданных[[#This Row],[Статус]],COUNTIF($Q$2:Базаданных[[#This Row],[Статус]],TRUE),\"\")","v":""},{"$f":"IFERROR(INDEX(Базаданных[Клиент],MATCH(ROWS($R$2:Базаданных[[#This Row],[Индекс]]),Базаданных[Индекс],0)),\"\")","v":""},{"$f":"NOT(ISERROR(SEARCH('Форма ввода'!$C$9,Базаданных[[#This Row],[Чей клиент]])))","v":true},{"$f":"IF(Базаданных[[#This Row],[Статус2]],COUNTIF($T$2:Базаданных[[#This Row],[Статус2]],TRUE),\"\")","v":48},{"$f":"IFERROR(INDEX(Базаданных[Чей клиент],MATCH(ROWS($U$2:Базаданных[[#This Row],[Индекс3]]),Базаданных[Индекс3],0)),\"\")","v":"Гречихина Юля"}]
["2019-04-01",43568.745847222221,13,"суббота","Апрель","2019",3400,"-",0,"-",0,"-",0,"-","Гречихина Юля","Гречихина Юля (AlexStore)",{"$f":"NOT(ISERROR(SEARCH('Форма ввода'!$C$5,Базаданных[[#This Row],[Клиент]])))","v":false},{"$f":"IF(Базаданных[[#This Row],[Статус]],COUNTIF($Q$2:Базаданных[[#This Row],[Статус]],TRUE),\"\")","v":""},{"$f":"IFERROR(INDEX(Базаданных[Клиент],MATCH(ROWS($R$2:Базаданных[[#This Row],[Индекс]]),Базаданных[Индекс],0)),\"\")","v":""},{"$f":"NOT(ISERROR(SEARCH('Форма ввода'!$C$9,Базаданных[[#This Row],[Чей клиент]])))","v":true},{"$f":"IF(Базаданных[[#This Row],[Статус2]],COUNTIF($T$2:Базаданных[[#This Row],[Статус2]],TRUE),\"\")","v":49},{"$f":"IFERROR(INDEX(Базаданных[Чей клиент],MATCH(ROWS($U$2:Базаданных[[#This Row],[Индекс3]]),Базаданных[Индекс3],0)),\"\")","v":"Гречихина Юля"}]
["2019-04-01",43568.746081365738,13,"суббота","Апрель","2019",1900,"-",0,"-",0,"-",0,"-","Гречихина Юля","Паша (Комиссионка Бутово)",{"$f":"NOT(ISERROR(SEARCH('Форма ввода'!$C$5,Базаданных[[#This Row],[Клиент]])))","v":false},{"$f":"IF(Базаданных[[#This Row],[Статус]],COUNTIF($Q$2:Базаданных[[#This Row],[Статус]],TRUE),\"\")","v":""},{"$f":"IFERROR(INDEX(Базаданных[Клиент],MATCH(ROWS($R$2:Базаданных[[#This Row],[Индекс]]),Базаданных[Индекс],0)),\"\")","v":""},{"$f":"NOT(ISERROR(SEARCH('Форма ввода'!$C$9,Базаданных[[#This Row],[Чей клиент]])))","v":true},{"$f":"IF(Базаданных[[#This Row],[Статус2]],COUNTIF($T$2:Базаданных[[#This Row],[Статус2]],TRUE),\"\")","v":50},{"$f":"IFERROR(INDEX(Базаданных[Чей клиент],MATCH(ROWS($U$2:Базаданных[[#This Row],[Индекс3]]),Базаданных[Индекс3],0)),\"\")","v":"Гречихина Юля"}]
["2019-04-01",43568.746383564816,13,"суббота","Апрель","2019",790,"-",0,"-",0,"-",0,"-","Гречихина Юля","Скупка Розовая (Коломна)",{"$f":"NOT(ISERROR(SEARCH('Форма ввода'!$C$5,Базаданных[[#This Row],[Клиент]])))","v":false},{"$f":"IF(Базаданных[[#This Row],[Статус]],COUNTIF($Q$2:Базаданных[[#This Row],[Статус]],TRUE),\"\")","v":""},{"$f":"IFERROR(INDEX(Базаданных[Клиент],MATCH(ROWS($R$2:Базаданных[[#This Row],[Индекс]]),Базаданных[Индекс],0)),\"\")","v":""},{"$f":"NOT(ISERROR(SEARCH('Форма ввода'!$C$9,Базаданных[[#This Row],[Чей клиент]])))","v":true},{"$f":"IF(Базаданных[[#This Row],[Статус2]],COUNTIF($T$2:Базаданных[[#This Row],[Статус2]],TRUE),\"\")","v":51},{"$f":"IFERROR(INDEX(Базаданных[Чей клиент],MATCH(ROWS($U$2:Базаданных[[#This Row],[Индекс3]]),Базаданных[Индекс3],0)),\"\")","v":"Гречихина Юля"}]
["2019-04-01",43568.746806712959,13,"суббота","Апрель","2019",4900,"-",0,"-",0,"-",0,"-","Гречихина Юля","Комиссионка (Серпухов)",{"$f":"NOT(ISERROR(SEARCH('Форма ввода'!$C$5,Базаданных[[#This Row],[Клиент]])))","v":false},{"$f":"IF(Базаданных[[#This Row],[Статус]],COUNTIF($Q$2:Базаданных[[#This Row],[Статус]],TRUE),\"\")","v":""},{"$f":"IFERROR(INDEX(Базаданных[Клиент],MATCH(ROWS($R$2:Базаданных[[#This Row],[Индекс]]),Базаданных[Индекс],0)),\"\")","v":""},{"$f":"NOT(ISERROR(SEARCH('Форма ввода'!$C$9,Базаданных[[#This Row],[Чей клиент]])))","v":true},{"$f":"IF(Базаданных[[#This Row],[Статус2]],COUNTIF($T$2:Базаданных[[#This Row],[Статус2]],TRUE),\"\")","v":52},{"$f":"IFERROR(INDEX(Базаданных[Чей клиент],MATCH(ROWS($U$2:Базаданных[[#This Row],[Индекс3]]),Базаданных[Индекс3],0)),\"\")","v":"Гречихина Юля"}]
["2019-04-01",43568.747244444443,13,"суббота","Апрель","2019",650,"-",0,"-",0,"-",0,"-","Гречихина Юля","Скупка  №1 (Пушкино)",{"$f":"NOT(ISERROR(SEARCH('Форма ввода'!$C$5,Базаданных[[#This Row],[Клиент]])))","v":false},{"$f":"IF(Базаданных[[#This Row],[Статус]],COUNTIF($Q$2:Базаданных[[#This Row],[Статус]],TRUE),\"\")","v":""},{"$f":"IFERROR(INDEX(Базаданных[Клиент],MATCH(ROWS($R$2:Базаданных[[#This Row],[Индекс]]),Базаданных[Индекс],0)),\"\")","v":""},{"$f":"NOT(ISERROR(SEARCH('Форма ввода'!$C$9,Базаданных[[#This Row],[Чей клиент]])))","v":true},{"$f":"IF(Базаданных[[#This Row],[Статус2]],COUNTIF($T$2:Базаданных[[#This Row],[Статус2]],TRUE),\"\")","v":53},{"$f":"IFERROR(INDEX(Базаданных[Чей клиент],MATCH(ROWS($U$2:Базаданных[[#This Row],[Индекс3]]),Базаданных[Индекс3],0)),\"\")","v":"Гречихина Юля"}]
["2019-04-01",43568.747577893519,13,"суббота","Апрель","2019",9000,"-",0,"-",0,"-",0,"-","Пименов Алексей","Частное лицо",{"$f":"NOT(ISERROR(SEARCH('Форма ввода'!$C$5,Базаданных[[#This Row],[Клиент]])))","v":false},{"$f":"IF(Базаданных[[#This Row],[Статус]],COUNTIF($Q$2:Базаданных[[#This Row],[Статус]],TRUE),\"\")","v":""},{"$f":"IFERROR(INDEX(Базаданных[Клиент],MATCH(ROWS($R$2:Базаданных[[#This Row],[Индекс]]),Базаданных[Индекс],0)),\"\")","v":""},{"$f":"NOT(ISERROR(SEARCH('Форма ввода'!$C$9,Базаданных[[#This Row],[Чей клиент]])))","v":true},{"$f":"IF(Базаданных[[#This Row],[Статус2]],COUNTIF($T$2:Базаданных[[#This Row],[Статус2]],TRUE),\"\")","v":54},{"$f":"IFERROR(INDEX(Базаданных[Чей клиент],MATCH(ROWS($U$2:Базаданных[[#This Row],[Индекс3]]),Базаданных[Индекс3],0)),\"\")","v":"Пименов Алексей"}]
["2019-04-01",43568.75163796296,13,"суббота","Апрель","2019",0,"-",0,"-",3300,"-",0,"-","","Борис (Теплый стан)",{"$f":"NOT(ISERROR(SEARCH('Форма ввода'!$C$5,Базаданных[[#This Row],[Клиент]])))","v":false},{"$f":"IF(Базаданных[[#This Row],[Статус]],COUNTIF($Q$2:Базаданных[[#This Row],[Статус]],TRUE),\"\")","v":""},{"$f":"IFERROR(INDEX(Базаданных[Клиент],MATCH(ROWS($R$2:Базаданных[[#This Row],[Индекс]]),Базаданных[Индекс],0)),\"\")","v":""},{"$f":"NOT(ISERROR(SEARCH('Форма ввода'!$C$9,Базаданных[[#This Row],[Чей клиент]])))","v":false},{"$f":"IF(Базаданных[[#This Row],[Статус2]],COUNTIF($T$2:Базаданных[[#This Row],[Статус2]],TRUE),\"\")","v":""},{"$f":"IFERROR(INDEX(Базаданных[Чей клиент],MATCH(ROWS($U$2:Базаданных[[#This Row],[Индекс3]]),Базаданных[Индекс3],0)),\"\")","v":"Пименов Алексей"}]
["2019-04-01",43568.751885069447,13,"суббота","Апрель","2019",0,"-",0,"-",280,"-",0,"-","Пименов Алексей","Шамиль (Грозный)",{"$f":"NOT(ISERROR(SEARCH('Форма ввода'!$C$5,Базаданных[[#This Row],[Клиент]])))","v":false},{"$f":"IF(Базаданных[[#This Row],[Статус]],COUNTIF($Q$2:Базаданных[[#This Row],[Статус]],TRUE),\"\")","v":""},{"$f":"IFERROR(INDEX(Базаданных[Клиент],MATCH(ROWS($R$2:Базаданных[[#This Row],[Индекс]]),Базаданных[Индекс],0)),\"\")","v":""},{"$f":"NOT(ISERROR(SEARCH('Форма ввода'!$C$9,Базаданных[[#This Row],[Чей клиент]])))","v":true},{"$f":"IF(Базаданных[[#This Row],[Статус2]],COUNTIF($T$2:Базаданных[[#This Row],[Статус2]],TRUE),\"\")","v":55},{"$f":"IFERROR(INDEX(Базаданных[Чей клиент],MATCH(ROWS($U$2:Базаданных[[#This Row],[Индекс3]]),Базаданных[Индекс3],0)),\"\")","v":"Пименов Алексей"}]
["2019-04-01",43568.752117476855,13,"суббота","Апрель","2019",0,"-",0,"-",14120,"-",0,"-","Пименов Алексей","Рустам Дагестан",{"$f":"NOT(ISERROR(SEARCH('Форма ввода'!$C$5,Базаданных[[#This Row],[Клиент]])))","v":false},{"$f":"IF(Базаданных[[#This Row],[Статус]],COUNTIF($Q$2:Базаданных[[#This Row],[Статус]],TRUE),\"\")","v":""},{"$f":"IFERROR(INDEX(Базаданных[Клиент],MATCH(ROWS($R$2:Базаданных[[#This Row],[Индекс]]),Базаданных[Индекс],0)),\"\")","v":""},{"$f":"NOT(ISERROR(SEARCH('Форма ввода'!$C$9,Базаданных[[#This Row],[Чей клиент]])))","v":true},{"$f":"IF(Базаданных[[#This Row],[Статус2]],COUNTIF($T$2:Базаданных[[#This Row],[Статус2]],TRUE),\"\")","v":56},{"$f":"IFERROR(INDEX(Базаданных[Чей клиент],MATCH(ROWS($U$2:Базаданных[[#This Row],[Индекс3]]),Базаданных[Индекс3],0)),\"\")","v":"Гречихина Юля"}]
["2019-04-01",43568.752335069446,13,"суббота","Апрель","2019",0,"-",0,"-",300,"-",0,"-","Гречихина Юля","Скупка Розовая (Мытищи)",{"$f":"NOT(ISERROR(SEARCH('Форма ввода'!$C$5,Базаданных[[#This Row],[Клиент]])))","v":false},{"$f":"IF(Базаданных[[#This Row],[Статус]],COUNTIF($Q$2:Базаданных[[#This Row],[Статус]],TRUE),\"\")","v":""},{"$f":"IFERROR(INDEX(Базаданных[Клиент],MATCH(ROWS($R$2:Базаданных[[#This Row],[Индекс]]),Базаданных[Индекс],0)),\"\")","v":""},{"$f":"NOT(ISERROR(SEARCH('Форма ввода'!$C$9,Базаданных[[#This Row],[Чей клиент]])))","v":true},{"$f":"IF(Базаданных[[#This Row],[Статус2]],COUNTIF($T$2:Базаданных[[#This Row],[Статус2]],TRUE),\"\")","v":57},{"$f":"IFERROR(INDEX(Базаданных[Чей клиент],MATCH(ROWS($U$2:Базаданных[[#This Row],[Индекс3]]),Базаданных[Индекс3],0)),\"\")","v":"Хачатрян Араик"}]
["2019-04-01",43568.757269791669,13,"суббота","Апрель","2019",0,"-",0,"-",500,"-",0,"-","Хачатрян Араик","Вадим (Митино 213, 406)",{"$f":"NOT(ISERROR(SEARCH('Форма ввода'!$C$5,Базаданных[[#This Row],[Клиент]])))","v":false},{"$f":"IF(Базаданных[[#This Row],[Статус]],COUNTIF($Q$2:Базаданных[[#This Row],[Статус]],TRUE),\"\")","v":""},{"$f":"IFERROR(INDEX(Базаданных[Клиент],MATCH(ROWS($R$2:Базаданных[[#This Row],[Индекс]]),Базаданных[Индекс],0)),\"\")","v":""},{"$f":"NOT(ISERROR(SEARCH('Форма ввода'!$C$9,Базаданных[[#This Row],[Чей клиент]])))","v":true},{"$f":"IF(Базаданных[[#This Row],[Статус2]],COUNTIF($T$2:Базаданных[[#This Row],[Статус2]],TRUE),\"\")","v":58},{"$f":"IFERROR(INDEX(Базаданных[Чей клиент],MATCH(ROWS($U$2:Базаданных[[#This Row],[Индекс3]]),Базаданных[Индекс3],0)),\"\")","v":"Гречихина Юля"}]
["2019-04-01",43568.757591550922,13,"суббота","Апрель","2019",0,"-",0,"-",1880,"-",0,"-","Гречихина Юля","Эпрем (Новые Черемушки)",{"$f":"NOT(ISERROR(SEARCH('Форма ввода'!$C$5,Базаданных[[#This Row],[Клиент]])))","v":false},{"$f":"IF(Базаданных[[#This Row],[Статус]],COUNTIF($Q$2:Базаданных[[#This Row],[Статус]],TRUE),\"\")","v":""},{"$f":"IFERROR(INDEX(Базаданных[Клиент],MATCH(ROWS($R$2:Базаданных[[#This Row],[Индекс]]),Базаданных[Индекс],0)),\"\")","v":""},{"$f":"NOT(ISERROR(SEARCH('Форма ввода'!$C$9,Базаданных[[#This Row],[Чей клиент]])))","v":true},{"$f":"IF(Базаданных[[#This Row],[Статус2]],COUNTIF($T$2:Базаданных[[#This Row],[Статус2]],TRUE),\"\")","v":59},{"$f":"IFERROR(INDEX(Базаданных[Чей клиент],MATCH(ROWS($U$2:Базаданных[[#This Row],[Индекс3]]),Базаданных[Индекс3],0)),\"\")","v":"Пименов Алексей"}]
["2019-04-01",43568.758271412036,13,"суббота","Апрель","2019",0,"-",0,"-",36704,"-",0,"-","Пименов Алексей","Эдик (От Сергея)",{"$f":"NOT(ISERROR(SEARCH('Форма ввода'!$C$5,Базаданных[[#This Row],[Клиент]])))","v":false},{"$f":"IF(Базаданных[[#This Row],[Статус]],COUNTIF($Q$2:Базаданных[[#This Row],[Статус]],TRUE),\"\")","v":""},{"$f":"IFERROR(INDEX(Базаданных[Клиент],MATCH(ROWS($R$2:Базаданных[[#This Row],[Индекс]]),Базаданных[Индекс],0)),\"\")","v":""},{"$f":"NOT(ISERROR(SEARCH('Форма ввода'!$C$9,Базаданных[[#This Row],[Чей клиент]])))","v":true},{"$f":"IF(Базаданных[[#This Row],[Статус2]],COUNTIF($T$2:Базаданных[[#This Row],[Статус2]],TRUE),\"\")","v":60},{"$f":"IFERROR(INDEX(Базаданных[Чей клиент],MATCH(ROWS($U$2:Базаданных[[#This Row],[Индекс3]]),Базаданных[Индекс3],0)),\"\")","v":"Пименов Алексей"}]
["2019-04-01",43568.758616550927,13,"суббота","Апрель","2019",0,"-",0,"-",21100,"-",0,"-","Пименов Алексей","Родион (Иваново)",{"$f":"NOT(ISERROR(SEARCH('Форма ввода'!$C$5,Базаданных[[#This Row],[Клиент]])))","v":false},{"$f":"IF(Базаданных[[#This Row],[Статус]],COUNTIF($Q$2:Базаданных[[#This Row],[Статус]],TRUE),\"\")","v":""},{"$f":"IFERROR(INDEX(Базаданных[Клиент],MATCH(ROWS($R$2:Базаданных[[#This Row],[Индекс]]),Базаданных[Индекс],0)),\"\")","v":""},{"$f":"NOT(ISERROR(SEARCH('Форма ввода'!$C$9,Базаданных[[#This Row],[Чей клиент]])))","v":true},{"$f":"IF(Базаданных[[#This Row],[Статус2]],COUNTIF($T$2:Базаданных[[#This Row],[Статус2]],TRUE),\"\")","v":61},{"$f":"IFERROR(INDEX(Базаданных[Чей клиент],MATCH(ROWS($U$2:Базаданных[[#This Row],[Индекс3]]),Базаданных[Индекс3],0)),\"\")","v":"Пименов Алексей"}]
["2019-04-01",43568.758934375001,13,"суббота","Апрель","2019",0,"-",0,"-",580,"-",0,"-","Пименов Алексей","Арсен Шанхоев (Ингушетия)",{"$f":"NOT(ISERROR(SEARCH('Форма ввода'!$C$5,Базаданных[[#This Row],[Клиент]])))","v":false},{"$f":"IF(Базаданных[[#This Row],[Статус]],COUNTIF($Q$2:Базаданных[[#This Row],[Статус]],TRUE),\"\")","v":""},{"$f":"IFERROR(INDEX(Базаданных[Клиент],MATCH(ROWS($R$2:Базаданных[[#This Row],[Индекс]]),Базаданных[Индекс],0)),\"\")","v":""},{"$f":"NOT(ISERROR(SEARCH('Форма ввода'!$C$9,Базаданных[[#This Row],[Чей клиент]])))","v":true},{"$f":"IF(Базаданных[[#This Row],[Статус2]],COUNTIF($T$2:Базаданных[[#This Row],[Статус2]],TRUE),\"\")","v":62},{"$f":"IFERROR(INDEX(Базаданных[Чей клиент],MATCH(ROWS($U$2:Базаданных[[#This Row],[Индекс3]]),Базаданных[Индекс3],0)),\"\")","v":"Пименов Алексей"}]
["2019-04-01",43568.759113888889,13,"суббота","Апрель","2019",0,"-",0,"-",4100,"-",0,"-","","Хорохорин Сергей (Кирсанов ТО)",{"$f":"NOT(ISERROR(SEARCH('Форма ввода'!$C$5,Базаданных[[#This Row],[Клиент]])))","v":false},{"$f":"IF(Базаданных[[#This Row],[Статус]],COUNTIF($Q$2:Базаданных[[#This Row],[Статус]],TRUE),\"\")","v":""},{"$f":"IFERROR(INDEX(Базаданных[Клиент],MATCH(ROWS($R$2:Базаданных[[#This Row],[Индекс]]),Базаданных[Индекс],0)),\"\")","v":""},{"$f":"NOT(ISERROR(SEARCH('Форма ввода'!$C$9,Базаданных[[#This Row],[Чей клиент]])))","v":false},{"$f":"IF(Базаданных[[#This Row],[Статус2]],COUNTIF($T$2:Базаданных[[#This Row],[Статус2]],TRUE),\"\")","v":""},{"$f":"IFERROR(INDEX(Базаданных[Чей клиент],MATCH(ROWS($U$2:Базаданных[[#This Row],[Индекс3]]),Базаданных[Индекс3],0)),\"\")","v":"Гречихина Юля"}]
["2019-04-01",43568.759831365744,13,"суббота","Апрель","2019",0,"-",0,"-",2800,"-",0,"-","Пименов Алексей","Иван (Пятигорск)",{"$f":"NOT(ISERROR(SEARCH('Форма ввода'!$C$5,Базаданных[[#This Row],[Клиент]])))","v":false},{"$f":"IF(Базаданных[[#This Row],[Статус]],COUNTIF($Q$2:Базаданных[[#This Row],[Статус]],TRUE),\"\")","v":""},{"$f":"IFERROR(INDEX(Базаданных[Клиент],MATCH(ROWS($R$2:Базаданных[[#This Row],[Индекс]]),Базаданных[Индекс],0)),\"\")","v":""},{"$f":"NOT(ISERROR(SEARCH('Форма ввода'!$C$9,Базаданных[[#This Row],[Чей клиент]])))","v":true},{"$f":"IF(Базаданных[[#This Row],[Статус2]],COUNTIF($T$2:Базаданных[[#This Row],[Статус2]],TRUE),\"\")","v":63},{"$f":"IFERROR(INDEX(Базаданных[Чей клиент],MATCH(ROWS($U$2:Базаданных[[#This Row],[Индекс3]]),Базаданных[Индекс3],0)),\"\")","v":"Пименов Алексей"}]
["2019-04-01",43568.766795023148,13,"суббота","Апрель","2019",0,"-",0,"-",370,"-",0,"-","Гречихина Юля","Станислав (Скупка Пушкина) главная",{"$f":"NOT(ISERROR(SEARCH('Форма ввода'!$C$5,Базаданных[[#This Row],[Клиент]])))","v":false},{"$f":"IF(Базаданных[[#This Row],[Статус]],COUNTIF($Q$2:Базаданных[[#This Row],[Статус]],TRUE),\"\")","v":""},{"$f":"IFERROR(INDEX(Базаданных[Клиент],MATCH(ROWS($R$2:Базаданных[[#This Row],[Индекс]]),Базаданных[Индекс],0)),\"\")","v":""},{"$f":"NOT(ISERROR(SEARCH('Форма ввода'!$C$9,Базаданных[[#This Row],[Чей клиент]])))","v":true},{"$f":"IF(Базаданных[[#This Row],[Статус2]],COUNTIF($T$2:Базаданных[[#This Row],[Статус2]],TRUE),\"\")","v":64},{"$f":"IFERROR(INDEX(Базаданных[Чей клиент],MATCH(ROWS($U$2:Базаданных[[#This Row],[Индекс3]]),Базаданных[Индекс3],0)),\"\")","v":"Пименов Алексей"}]
["2019-04-01",43568.767780787035,13,"суббота","Апрель","2019",0,"-",0,"-",840,"-",0,"-","Пименов Алексей","Эрик Каренович (Армения)",{"$f":"NOT(ISERROR(SEARCH('Форма ввода'!$C$5,Базаданных[[#This Row],[Клиент]])))","v":false},{"$f":"IF(Базаданных[[#This Row],[Статус]],COUNTIF($Q$2:Базаданных[[#This Row],[Статус]],TRUE),\"\")","v":""},{"$f":"IFERROR(INDEX(Базаданных[Клиент],MATCH(ROWS($R$2:Базаданных[[#This Row],[Индекс]]),Базаданных[Индекс],0)),\"\")","v":""},{"$f":"NOT(ISERROR(SEARCH('Форма ввода'!$C$9,Базаданных[[#This Row],[Чей клиент]])))","v":true},{"$f":"IF(Базаданных[[#This Row],[Статус2]],COUNTIF($T$2:Базаданных[[#This Row],[Статус2]],TRUE),\"\")","v":65},{"$f":"IFERROR(INDEX(Базаданных[Чей клиент],MATCH(ROWS($U$2:Базаданных[[#This Row],[Индекс3]]),Базаданных[Индекс3],0)),\"\")","v":"Гречихина Юля"}]
["2019-04-01",43568.767950694448,13,"суббота","Апрель","2019",0,"-",0,"-",9600,"-",0,"-","Пименов Алексей","Пименов Алексей (АлексСтор)",{"$f":"NOT(ISERROR(SEARCH('Форма ввода'!$C$5,Базаданных[[#This Row],[Клиент]])))","v":false},{"$f":"IF(Базаданных[[#This Row],[Статус]],COUNTIF($Q$2:Базаданных[[#This Row],[Статус]],TRUE),\"\")","v":""},{"$f":"IFERROR(INDEX(Базаданных[Клиент],MATCH(ROWS($R$2:Базаданных[[#This Row],[Индекс]]),Базаданных[Индекс],0)),\"\")","v":""},{"$f":"NOT(ISERROR(SEARCH('Форма ввода'!$C$9,Базаданных[[#This Row],[Чей клиент]])))","v":true},{"$f":"IF(Базаданных[[#This Row],[Статус2]],COUNTIF($T$2:Базаданных[[#This Row],[Статус2]],TRUE),\"\")","v":66},{"$f":"IFERROR(INDEX(Базаданных[Чей клиент],MATCH(ROWS($U$2:Базаданных[[#This Row],[Индекс3]]),Базаданных[Индекс3],0)),\"\")","v":"Пименов Алексей"}]
["2019-04-01",43568.768143634261,13,"суббота","Апрель","2019",0,"-",0,"-",150,"-",0,"-","Гречихина Юля","Олеся (Подольск Скупка)",{"$f":"NOT(ISERROR(SEARCH('Форма ввода'!$C$5,Базаданных[[#This Row],[Клиент]])))","v":false},{"$f":"IF(Базаданных[[#This Row],[Статус]],COUNTIF($Q$2:Базаданных[[#This Row],[Статус]],TRUE),\"\")","v":""},{"$f":"IFERROR(INDEX(Базаданных[Клиент],MATCH(ROWS($R$2:Базаданных[[#This Row],[Индекс]]),Базаданных[Индекс],0)),\"\")","v":""},{"$f":"NOT(ISERROR(SEARCH('Форма ввода'!$C$9,Базаданных[[#This Row],[Чей клиент]])))","v":true},{"$f":"IF(Базаданных[[#This Row],[Статус2]],COUNTIF($T$2:Базаданных[[#This Row],[Статус2]],TRUE),\"\")","v":67},{"$f":"IFERROR(INDEX(Базаданных[Чей клиент],MATCH(ROWS($U$2:Базаданных[[#This Row],[Индекс3]]),Базаданных[Индекс3],0)),\"\")","v":"Нерсесов Давид"}]
["2019-04-01",43568.768370486112,13,"суббота","Апрель","2019",0,"-",0,"-",230,"-",0,"-","Пименов Алексей","Андрей (Коммисионка Королев)",{"$f":"NOT(ISERROR(SEARCH('Форма ввода'!$C$5,Базаданных[[#This Row],[Клиент]])))","v":false},{"$f":"IF(Базаданных[[#This Row],[Статус]],COUNTIF($Q$2:Базаданных[[#This Row],[Статус]],TRUE),\"\")","v":""},{"$f":"IFERROR(INDEX(Базаданных[Клиент],MATCH(ROWS($R$2:Базаданных[[#This Row],[Индекс]]),Базаданных[Индекс],0)),\"\")","v":""},{"$f":"NOT(ISERROR(SEARCH('Форма ввода'!$C$9,Базаданных[[#This Row],[Чей клиент]])))","v":true},{"$f":"IF(Базаданных[[#This Row],[Статус2]],COUNTIF($T$2:Базаданных[[#This Row],[Статус2]],TRUE),\"\")","v":68},{"$f":"IFERROR(INDEX(Базаданных[Чей клиент],MATCH(ROWS($U$2:Базаданных[[#This Row],[Индекс3]]),Базаданных[Индекс3],0)),\"\")","v":"Пименов Алексей"}]
["2019-04-01",43568.769219444446,13,"суббота","Апрель","2019",0,"-",0,"-",49720,"-",0,"-","Нерсесов Давид","Нерсесов Давид ( AlexStore)",{"$f":"NOT(ISERROR(SEARCH('Форма ввода'!$C$5,Базаданных[[#This Row],[Клиент]])))","v":false},{"$f":"IF(Базаданных[[#This Row],[Статус]],COUNTIF($Q$2:Базаданных[[#This Row],[Статус]],TRUE),\"\")","v":""},{"$f":"IFERROR(INDEX(Базаданных[Клиент],MATCH(ROWS($R$2:Базаданных[[#This Row],[Индекс]]),Базаданных[Индекс],0)),\"\")","v":""},{"$f":"NOT(ISERROR(SEARCH('Форма ввода'!$C$9,Базаданных[[#This Row],[Чей клиент]])))","v":true},{"$f":"IF(Базаданных[[#This Row],[Статус2]],COUNTIF($T$2:Базаданных[[#This Row],[Статус2]],TRUE),\"\")","v":69},{"$f":"IFERROR(INDEX(Базаданных[Чей клиент],MATCH(ROWS($U$2:Базаданных[[#This Row],[Индекс3]]),Базаданных[Индекс3],0)),\"\")","v":"Нерсесов Давид"}]
["2019-04-01",43568.769436805553,13,"суббота","Апрель","2019",0,"-",0,"-",670,"-",0,"-","Пименов Алексей","Павел (Скупка Балашиха)",{"$f":"NOT(ISERROR(SEARCH('Форма ввода'!$C$5,Базаданных[[#This Row],[Клиент]])))","v":false},{"$f":"IF(Базаданных[[#This Row],[Статус]],COUNTIF($Q$2:Базаданных[[#This Row],[Статус]],TRUE),\"\")","v":""},{"$f":"IFERROR(INDEX(Базаданных[Клиент],MATCH(ROWS($R$2:Базаданных[[#This Row],[Индекс]]),Базаданных[Индекс],0)),\"\")","v":""},{"$f":"NOT(ISERROR(SEARCH('Форма ввода'!$C$9,Базаданных[[#This Row],[Чей клиент]])))","v":true},{"$f":"IF(Базаданных[[#This Row],[Статус2]],COUNTIF($T$2:Базаданных[[#This Row],[Статус2]],TRUE),\"\")","v":70},{"$f":"IFERROR(INDEX(Базаданных[Чей клиент],MATCH(ROWS($U$2:Базаданных[[#This Row],[Индекс3]]),Базаданных[Индекс3],0)),\"\")","v":"Пименов Алексей"}]
["2019-04-01",43568.769865162038,13,"суббота","Апрель","2019",0,"-",0,"-",6770,"-",0,"-","Нерсесов Давид","Александр (Пермь)",{"$f":"NOT(ISERROR(SEARCH('Форма ввода'!$C$5,Базаданных[[#This Row],[Клиент]])))","v":false},{"$f":"IF(Базаданных[[#This Row],[Статус]],COUNTIF($Q$2:Базаданных[[#This Row],[Статус]],TRUE),\"\")","v":""},{"$f":"IFERROR(INDEX(Базаданных[Клиент],MATCH(ROWS($R$2:Базаданных[[#This Row],[Индекс]]),Базаданных[Индекс],0)),\"\")","v":""},{"$f":"NOT(ISERROR(SEARCH('Форма ввода'!$C$9,Базаданных[[#This Row],[Чей клиент]])))","v":true},{"$f":"IF(Базаданных[[#This Row],[Статус2]],COUNTIF($T$2:Базаданных[[#This Row],[Статус2]],TRUE),\"\")","v":71},{"$f":"IFERROR(INDEX(Базаданных[Чей клиент],MATCH(ROWS($U$2:Базаданных[[#This Row],[Индекс3]]),Базаданных[Индекс3],0)),\"\")","v":"Пименов Алексей"}]
["2019-04-01",43568.77007071759,13,"суббота","Апрель","2019",0,"-",0,"-",7065,"-",0,"-","Пименов Алексей","Андрей Тархов",{"$f":"NOT(ISERROR(SEARCH('Форма ввода'!$C$5,Базаданных[[#This Row],[Клиент]])))","v":false},{"$f":"IF(Базаданных[[#This Row],[Статус]],COUNTIF($Q$2:Базаданных[[#This Row],[Статус]],TRUE),\"\")","v":""},{"$f":"IFERROR(INDEX(Базаданных[Клиент],MATCH(ROWS($R$2:Базаданных[[#This Row],[Индекс]]),Базаданных[Индекс],0)),\"\")","v":""},{"$f":"NOT(ISERROR(SEARCH('Форма ввода'!$C$9,Базаданных[[#This Row],[Чей клиент]])))","v":true},{"$f":"IF(Базаданных[[#This Row],[Статус2]],COUNTIF($T$2:Базаданных[[#This Row],[Статус2]],TRUE),\"\")","v":72},{"$f":"IFERROR(INDEX(Базаданных[Чей клиент],MATCH(ROWS($U$2:Базаданных[[#This Row],[Индекс3]]),Базаданных[Индекс3],0)),\"\")","v":"Пименов Алексей"}]
["2019-04-01",43568.770257060183,13,"суббота","Апрель","2019",0,"-",0,"-",12720,"-",0,"-","Пименов Алексей","КМТ Сервис (Клин)",{"$f":"NOT(ISERROR(SEARCH('Форма ввода'!$C$5,Базаданных[[#This Row],[Клиент]])))","v":false},{"$f":"IF(Базаданных[[#This Row],[Статус]],COUNTIF($Q$2:Базаданных[[#This Row],[Статус]],TRUE),\"\")","v":""},{"$f":"IFERROR(INDEX(Базаданных[Клиент],MATCH(ROWS($R$2:Базаданных[[#This Row],[Индекс]]),Базаданных[Индекс],0)),\"\")","v":""},{"$f":"NOT(ISERROR(SEARCH('Форма ввода'!$C$9,Базаданных[[#This Row],[Чей клиент]])))","v":true},{"$f":"IF(Базаданных[[#This Row],[Статус2]],COUNTIF($T$2:Базаданных[[#This Row],[Статус2]],TRUE),\"\")","v":73},{"$f":"IFERROR(INDEX(Базаданных[Чей клиент],MATCH(ROWS($U$2:Базаданных[[#This Row],[Индекс3]]),Базаданных[Индекс3],0)),\"\")","v":"Пименов Алексей"}]
["2019-04-01",43568.770462615743,13,"суббота","Апрель","2019",0,"-",0,"-",100,"-",0,"-","Пименов Алексей","Сергей (Центр Скупки)",{"$f":"NOT(ISERROR(SEARCH('Форма ввода'!$C$5,Базаданных[[#This Row],[Клиент]])))","v":false},{"$f":"IF(Базаданных[[#This Row],[Статус]],COUNTIF($Q$2:Базаданных[[#This Row],[Статус]],TRUE),\"\")","v":""},{"$f":"IFERROR(INDEX(Базаданных[Клиент],MATCH(ROWS($R$2:Базаданных[[#This Row],[Индекс]]),Базаданных[Индекс],0)),\"\")","v":""},{"$f":"NOT(ISERROR(SEARCH('Форма ввода'!$C$9,Базаданных[[#This Row],[Чей клиент]])))","v":true},{"$f":"IF(Базаданных[[#This Row],[Статус2]],COUNTIF($T$2:Базаданных[[#This Row],[Статус2]],TRUE),\"\")","v":74},{"$f":"IFERROR(INDEX(Базаданных[Чей клиент],MATCH(ROWS($U$2:Базаданных[[#This Row],[Индекс3]]),Базаданных[Индекс3],0)),\"\")","v":"Пименов Алексей"}]
["2019-04-01",43568.770599537034,13,"суббота","Апрель","2019",0,"-",0,"-",51500,"-",0,"-","Пименов Алексей","Максим Калининград",{"$f":"NOT(ISERROR(SEARCH('Форма ввода'!$C$5,Базаданных[[#This Row],[Клиент]])))","v":false},{"$f":"IF(Базаданных[[#This Row],[Статус]],COUNTIF($Q$2:Базаданных[[#This Row],[Статус]],TRUE),\"\")","v":""},{"$f":"IFERROR(INDEX(Базаданных[Клиент],MATCH(ROWS($R$2:Базаданных[[#This Row],[Индекс]]),Базаданных[Индекс],0)),\"\")","v":""},{"$f":"NOT(ISERROR(SEARCH('Форма ввода'!$C$9,Базаданных[[#This Row],[Чей клиент]])))","v":true},{"$f":"IF(Базаданных[[#This Row],[Статус2]],COUNTIF($T$2:Базаданных[[#This Row],[Статус2]],TRUE),\"\")","v":75},{"$f":"IFERROR(INDEX(Базаданных[Чей клиент],MATCH(ROWS($U$2:Базаданных[[#This Row],[Индекс3]]),Базаданных[Индекс3],0)),\"\")","v":"Пименов Алексей"}]
["2019-04-01",43568.770843055558,13,"суббота","Апрель","2019",0,"-",0,"-",12190,"-",0,"-","Пименов Алексей","АЛЬФА ООО",{"$f":"NOT(ISERROR(SEARCH('Форма ввода'!$C$5,Базаданных[[#This Row],[Клиент]])))","v":false},{"$f":"IF(Базаданных[[#This Row],[Статус]],COUNTIF($Q$2:Базаданных[[#This Row],[Статус]],TRUE),\"\")","v":""},{"$f":"IFERROR(INDEX(Базаданных[Клиент],MATCH(ROWS($R$2:Базаданных[[#This Row],[Индекс]]),Базаданных[Индекс],0)),\"\")","v":""},{"$f":"NOT(ISERROR(SEARCH('Форма ввода'!$C$9,Базаданных[[#This Row],[Чей клиент]])))","v":true},{"$f":"IF(Базаданных[[#This Row],[Статус2]],COUNTIF($T$2:Базаданных[[#This Row],[Статус2]],TRUE),\"\")","v":76},{"$f":"IFERROR(INDEX(Базаданных[Чей клиент],MATCH(ROWS($U$2:Базаданных[[#This Row],[Индекс3]]),Базаданных[Индекс3],0)),\"\")","v":"Пименов Алексей"}]
["2019-04-01",43568.770969212965,13,"суббота","Апрель","2019",0,"-",0,"-",29400,"-",0,"-","Пименов Алексей","Александр (Сызрань)",{"$f":"NOT(ISERROR(SEARCH('Форма ввода'!$C$5,Базаданных[[#This Row],[Клиент]])))","v":false},{"$f":"IF(Базаданных[[#This Row],[Статус]],COUNTIF($Q$2:Базаданных[[#This Row],[Статус]],TRUE),\"\")","v":""},{"$f":"IFERROR(INDEX(Базаданных[Клиент],MATCH(ROWS($R$2:Базаданных[[#This Row],[Индекс]]),Базаданных[Индекс],0)),\"\")","v":""},{"$f":"NOT(ISERROR(SEARCH('Форма ввода'!$C$9,Базаданных[[#This Row],[Чей клиент]])))","v":true},{"$f":"IF(Базаданных[[#This Row],[Статус2]],COUNTIF($T$2:Базаданных[[#This Row],[Статус2]],TRUE),\"\")","v":77},{"$f":"IFERROR(INDEX(Базаданных[Чей клиент],MATCH(ROWS($U$2:Базаданных[[#This Row],[Индекс3]]),Базаданных[Индекс3],0)),\"\")","v":"Гречихина Юля"}]
["2019-04-01",43568.771244444448,13,"суббота","Апрель","2019",0,"-",0,"-",69720,"-",0,"-","Пименов Алексей","Титан (Киров)",{"$f":"NOT(ISERROR(SEARCH('Форма ввода'!$C$5,Базаданных[[#This Row],[Клиент]])))","v":false},{"$f":"IF(Базаданных[[#This Row],[Статус]],COUNTIF($Q$2:Базаданных[[#This Row],[Статус]],TRUE),\"\")","v":""},{"$f":"IFERROR(INDEX(Базаданных[Клиент],MATCH(ROWS($R$2:Базаданных[[#This Row],[Индекс]]),Базаданных[Индекс],0)),\"\")","v":""},{"$f":"NOT(ISERROR(SEARCH('Форма ввода'!$C$9,Базаданных[[#This Row],[Чей клиент]])))","v":true},{"$f":"IF(Базаданных[[#This Row],[Статус2]],COUNTIF($T$2:Базаданных[[#This Row],[Статус2]],TRUE),\"\")","v":78},{"$f":"IFERROR(INDEX(Базаданных[Чей клиент],MATCH(ROWS($U$2:Базаданных[[#This Row],[Индекс3]]),Базаданных[Индекс3],0)),\"\")","v":"Пименов Алексей"}]
["2019-04-01",43568.771500000003,13,"суббота","Апрель","2019",0,"-",0,"-",1900,"-",0,"-","Гречихина Юля","Розовая Скупка (Главная Москва)",{"$f":"NOT(ISERROR(SEARCH('Форма ввода'!$C$5,Базаданных[[#This Row],[Клиент]])))","v":false},{"$f":"IF(Базаданных[[#This Row],[Статус]],COUNTIF($Q$2:Базаданных[[#This Row],[Статус]],TRUE),\"\")","v":""},{"$f":"IFERROR(INDEX(Базаданных[Клиент],MATCH(ROWS($R$2:Базаданных[[#This Row],[Индекс]]),Базаданных[Индекс],0)),\"\")","v":""},{"$f":"NOT(ISERROR(SEARCH('Форма ввода'!$C$9,Базаданных[[#This Row],[Чей клиент]])))","v":true},{"$f":"IF(Базаданных[[#This Row],[Статус2]],COUNTIF($T$2:Базаданных[[#This Row],[Статус2]],TRUE),\"\")","v":79},{"$f":"IFERROR(INDEX(Базаданных[Чей клиент],MATCH(ROWS($U$2:Базаданных[[#This Row],[Индекс3]]),Базаданных[Индекс3],0)),\"\")","v":"Пименов Алексей"}]
["2019-04-01",43568.771704398147,13,"суббота","Апрель","2019",0,"-",0,"-",1090,"-",0,"-","Пименов Алексей","ИП Сизов",{"$f":"NOT(ISERROR(SEARCH('Форма ввода'!$C$5,Базаданных[[#This Row],[Клиент]])))","v":false},{"$f":"IF(Базаданных[[#This Row],[Статус]],COUNTIF($Q$2:Базаданных[[#This Row],[Статус]],TRUE),\"\")","v":""},{"$f":"IFERROR(INDEX(Базаданных[Клиент],MATCH(ROWS($R$2:Базаданных[[#This Row],[Индекс]]),Базаданных[Индекс],0)),\"\")","v":""},{"$f":"NOT(ISERROR(SEARCH('Форма ввода'!$C$9,Базаданных[[#This Row],[Чей клиент]])))","v":true},{"$f":"IF(Базаданных[[#This Row],[Статус2]],COUNTIF($T$2:Базаданных[[#This Row],[Статус2]],TRUE),\"\")","v":80},{"$f":"IFERROR(INDEX(Базаданных[Чей клиент],MATCH(ROWS($U$2:Базаданных[[#This Row],[Индекс3]]),Базаданных[Индекс3],0)),\"\")","v":"Пименов Алексей"}]
["2019-04-01",43568.771909374998,13,"суббота","Апрель","2019",0,"-",0,"-",955,"-",0,"-","Пименов Алексей","Дмитрий (Ломбардный дом)",{"$f":"NOT(ISERROR(SEARCH('Форма ввода'!$C$5,Базаданных[[#This Row],[Клиент]])))","v":false},{"$f":"IF(Базаданных[[#This Row],[Статус]],COUNTIF($Q$2:Базаданных[[#This Row],[Статус]],TRUE),\"\")","v":""},{"$f":"IFERROR(INDEX(Базаданных[Клиент],MATCH(ROWS($R$2:Базаданных[[#This Row],[Индекс]]),Базаданных[Индекс],0)),\"\")","v":""},{"$f":"NOT(ISERROR(SEARCH('Форма ввода'!$C$9,Базаданных[[#This Row],[Чей клиент]])))","v":true},{"$f":"IF(Базаданных[[#This Row],[Статус2]],COUNTIF($T$2:Базаданных[[#This Row],[Статус2]],TRUE),\"\")","v":81},{"$f":"IFERROR(INDEX(Базаданных[Чей клиент],MATCH(ROWS($U$2:Базаданных[[#This Row],[Индекс3]]),Базаданных[Индекс3],0)),\"\")","v":"Пименов Алексей"}]
["2019-04-01",43568.772376851855,13,"суббота","Апрель","2019",0,"-",0,"-",4975,"-",0,"-","Пименов Алексей","Венера (Нижний Новгород)",{"$f":"NOT(ISERROR(SEARCH('Форма ввода'!$C$5,Базаданных[[#This Row],[Клиент]])))","v":false},{"$f":"IF(Базаданных[[#This Row],[Статус]],COUNTIF($Q$2:Базаданных[[#This Row],[Статус]],TRUE),\"\")","v":""},{"$f":"IFERROR(INDEX(Базаданных[Клиент],MATCH(ROWS($R$2:Базаданных[[#This Row],[Индекс]]),Базаданных[Индекс],0)),\"\")","v":""},{"$f":"NOT(ISERROR(SEARCH('Форма ввода'!$C$9,Базаданных[[#This Row],[Чей клиент]])))","v":true},{"$f":"IF(Базаданных[[#This Row],[Статус2]],COUNTIF($T$2:Базаданных[[#This Row],[Статус2]],TRUE),\"\")","v":82},{"$f":"IFERROR(INDEX(Базаданных[Чей клиент],MATCH(ROWS($U$2:Базаданных[[#This Row],[Индекс3]]),Базаданных[Индекс3],0)),\"\")","v":"Пименов Алексей"}]
["2019-04-01",43568.772682523151,13,"суббота","Апрель","2019",0,"-",0,"-",650,"-",0,"-","Пименов Алексей","Алексей Николаев (Псков)",{"$f":"NOT(ISERROR(SEARCH('Форма ввода'!$C$5,Базаданных[[#This Row],[Клиент]])))","v":false},{"$f":"IF(Базаданных[[#This Row],[Статус]],COUNTIF($Q$2:Базаданных[[#This Row],[Статус]],TRUE),\"\")","v":""},{"$f":"IFERROR(INDEX(Базаданных[Клиент],MATCH(ROWS($R$2:Базаданных[[#This Row],[Индекс]]),Базаданных[Индекс],0)),\"\")","v":""},{"$f":"NOT(ISERROR(SEARCH('Форма ввода'!$C$9,Базаданных[[#This Row],[Чей клиент]])))","v":true},{"$f":"IF(Базаданных[[#This Row],[Статус2]],COUNTIF($T$2:Базаданных[[#This Row],[Статус2]],TRUE),\"\")","v":83},{"$f":"IFERROR(INDEX(Базаданных[Чей клиент],MATCH(ROWS($U$2:Базаданных[[#This Row],[Индекс3]]),Базаданных[Индекс3],0)),\"\")","v":"Нерсесов Давид"}]
["2019-04-01",43568.772926736114,13,"суббота","Апрель","2019",0,"-",0,"-",2500,"-",0,"-","Пименов Алексей","Победа (Рязань)",{"$f":"NOT(ISERROR(SEARCH('Форма ввода'!$C$5,Базаданных[[#This Row],[Клиент]])))","v":false},{"$f":"IF(Базаданных[[#This Row],[Статус]],COUNTIF($Q$2:Базаданных[[#This Row],[Статус]],TRUE),\"\")","v":""},{"$f":"IFERROR(INDEX(Базаданных[Клиент],MATCH(ROWS($R$2:Базаданных[[#This Row],[Индекс]]),Базаданных[Индекс],0)),\"\")","v":""},{"$f":"NOT(ISERROR(SEARCH('Форма ввода'!$C$9,Базаданных[[#This Row],[Чей клиент]])))","v":true},{"$f":"IF(Базаданных[[#This Row],[Статус2]],COUNTIF($T$2:Базаданных[[#This Row],[Статус2]],TRUE),\"\")","v":84},{"$f":"IFERROR(INDEX(Базаданных[Чей клиент],MATCH(ROWS($U$2:Базаданных[[#This Row],[Индекс3]]),Базаданных[Индекс3],0)),\"\")","v":"Нерсесо Давид"}]
["2019-04-01",43568.773145949075,13,"суббота","Апрель","2019",0,"-",0,"-",1200,"-",0,"-","Нерсесов Давид","Василий T-95 (Савеловский)",{"$f":"NOT(ISERROR(SEARCH('Форма ввода'!$C$5,Базаданных[[#This Row],[Клиент]])))","v":false},{"$f":"IF(Базаданных[[#This Row],[Статус]],COUNTIF($Q$2:Базаданных[[#This Row],[Статус]],TRUE),\"\")","v":""},{"$f":"IFERROR(INDEX(Базаданных[Клиент],MATCH(ROWS($R$2:Базаданных[[#This Row],[Индекс]]),Базаданных[Индекс],0)),\"\")","v":""},{"$f":"NOT(ISERROR(SEARCH('Форма ввода'!$C$9,Базаданных[[#This Row],[Чей клиент]])))","v":true},{"$f":"IF(Базаданных[[#This Row],[Статус2]],COUNTIF($T$2:Базаданных[[#This Row],[Статус2]],TRUE),\"\")","v":85},{"$f":"IFERROR(INDEX(Базаданных[Чей клиент],MATCH(ROWS($U$2:Базаданных[[#This Row],[Индекс3]]),Базаданных[Индекс3],0)),\"\")","v":"Пименов Алексей"}]
["2019-04-01",43568.773465046295,13,"суббота","Апрель","2019",0,"-",0,"-",11395,"-",0,"-","Нерсесо Давид","Скупка Алтуфьево Андрей",{"$f":"NOT(ISERROR(SEARCH('Форма ввода'!$C$5,Базаданных[[#This Row],[Клиент]])))","v":false},{"$f":"IF(Базаданных[[#This Row],[Статус]],COUNTIF($Q$2:Базаданных[[#This Row],[Статус]],TRUE),\"\")","v":""},{"$f":"IFERROR(INDEX(Базаданных[Клиент],MATCH(ROWS($R$2:Базаданных[[#This Row],[Индекс]]),Базаданных[Индекс],0)),\"\")","v":""},{"$f":"NOT(ISERROR(SEARCH('Форма ввода'!$C$9,Базаданных[[#This Row],[Чей клиент]])))","v":true},{"$f":"IF(Базаданных[[#This Row],[Статус2]],COUNTIF($T$2:Базаданных[[#This Row],[Статус2]],TRUE),\"\")","v":86},{"$f":"IFERROR(INDEX(Базаданных[Чей клиент],MATCH(ROWS($U$2:Базаданных[[#This Row],[Индекс3]]),Базаданных[Индекс3],0)),\"\")","v":"Пименов Алексей"}]
["2019-04-01",43568.773665277775,13,"суббота","Апрель","2019",0,"-",0,"-",500,"-",0,"-","Пименов Алексей","Александр (П-93 Савок)",{"$f":"NOT(ISERROR(SEARCH('Форма ввода'!$C$5,Базаданных[[#This Row],[Клиент]])))","v":false},{"$f":"IF(Базаданных[[#This Row],[Статус]],COUNTIF($Q$2:Базаданных[[#This Row],[Статус]],TRUE),\"\")","v":""},{"$f":"IFERROR(INDEX(Базаданных[Клиент],MATCH(ROWS($R$2:Базаданных[[#This Row],[Индекс]]),Базаданных[Индекс],0)),\"\")","v":""},{"$f":"NOT(ISERROR(SEARCH('Форма ввода'!$C$9,Базаданных[[#This Row],[Чей клиент]])))","v":true},{"$f":"IF(Базаданных[[#This Row],[Статус2]],COUNTIF($T$2:Базаданных[[#This Row],[Статус2]],TRUE),\"\")","v":87},{"$f":"IFERROR(INDEX(Базаданных[Чей клиент],MATCH(ROWS($U$2:Базаданных[[#This Row],[Индекс3]]),Базаданных[Индекс3],0)),\"\")","v":"Пименов Алексей"}]
["2019-04-01",43568.774110763887,13,"суббота","Апрель","2019",0,"-",0,"-",950,"-",0,"-","Пименов Алексей","Егор (QWE)",{"$f":"NOT(ISERROR(SEARCH('Форма ввода'!$C$5,Базаданных[[#This Row],[Клиент]])))","v":false},{"$f":"IF(Базаданных[[#This Row],[Статус]],COUNTIF($Q$2:Базаданных[[#This Row],[Статус]],TRUE),\"\")","v":""},{"$f":"IFERROR(INDEX(Базаданных[Клиент],MATCH(ROWS($R$2:Базаданных[[#This Row],[Индекс]]),Базаданных[Индекс],0)),\"\")","v":""},{"$f":"NOT(ISERROR(SEARCH('Форма ввода'!$C$9,Базаданных[[#This Row],[Чей клиент]])))","v":true},{"$f":"IF(Базаданных[[#This Row],[Статус2]],COUNTIF($T$2:Базаданных[[#This Row],[Статус2]],TRUE),\"\")","v":88},{"$f":"IFERROR(INDEX(Базаданных[Чей клиент],MATCH(ROWS($U$2:Базаданных[[#This Row],[Индекс3]]),Базаданных[Индекс3],0)),\"\")","v":"Пименов Алексей"}]
["2019-04-01",43568.774293287039,13,"суббота","Апрель","2019",0,"-",0,"-",66730,"-",0,"-","Пименов Алексей","Виталий Киров",{"$f":"NOT(ISERROR(SEARCH('Форма ввода'!$C$5,Базаданных[[#This Row],[Клиент]])))","v":true},{"$f":"IF(Базаданных[[#This Row],[Статус]],COUNTIF($Q$2:Базаданных[[#This Row],[Статус]],TRUE),\"\")","v":2},{"$f":"IFERROR(INDEX(Базаданных[Клиент],MATCH(ROWS($R$2:Базаданных[[#This Row],[Индекс]]),Базаданных[Индекс],0)),\"\")","v":""},{"$f":"NOT(ISERROR(SEARCH('Форма ввода'!$C$9,Базаданных[[#This Row],[Чей клиент]])))","v":true},{"$f":"IF(Базаданных[[#This Row],[Статус2]],COUNTIF($T$2:Базаданных[[#This Row],[Статус2]],TRUE),\"\")","v":89},{"$f":"IFERROR(INDEX(Базаданных[Чей клиент],MATCH(ROWS($U$2:Базаданных[[#This Row],[Индекс3]]),Базаданных[Индекс3],0)),\"\")","v":"Пименов Алексей"}]
["2019-04-01",43568.774569791669,13,"суббота","Апрель","2019",0,"-",0,"-",420,"-",0,"-","Пименов Алексей","Частное лицо",{"$f":"NOT(ISERROR(SEARCH('Форма ввода'!$C$5,Базаданных[[#This Row],[Клиент]])))","v":false},{"$f":"IF(Базаданных[[#This Row],[Статус]],COUNTIF($Q$2:Базаданных[[#This Row],[Статус]],TRUE),\"\")","v":""},{"$f":"IFERROR(INDEX(Базаданных[Клиент],MATCH(ROWS($R$2:Базаданных[[#This Row],[Индекс]]),Базаданных[Индекс],0)),\"\")","v":""},{"$f":"NOT(ISERROR(SEARCH('Форма ввода'!$C$9,Базаданных[[#This Row],[Чей клиент]])))","v":true},{"$f":"IF(Базаданных[[#This Row],[Статус2]],COUNTIF($T$2:Базаданных[[#This Row],[Статус2]],TRUE),\"\")","v":90},{"$f":"IFERROR(INDEX(Базаданных[Чей клиент],MATCH(ROWS($U$2:Базаданных[[#This Row],[Индекс3]]),Базаданных[Индекс3],0)),\"\")","v":"Гречихина Юля"}]
["2019-04-01",43568.774831365743,13,"суббота","Апрель","2019",0,"-",0,"-",300,"-",0,"-","Пименов Алексей","Михаил Рязань",{"$f":"NOT(ISERROR(SEARCH('Форма ввода'!$C$5,Базаданных[[#This Row],[Клиент]])))","v":false},{"$f":"IF(Базаданных[[#This Row],[Статус]],COUNTIF($Q$2:Базаданных[[#This Row],[Статус]],TRUE),\"\")","v":""},{"$f":"IFERROR(INDEX(Базаданных[Клиент],MATCH(ROWS($R$2:Базаданных[[#This Row],[Индекс]]),Базаданных[Индекс],0)),\"\")","v":""},{"$f":"NOT(ISERROR(SEARCH('Форма ввода'!$C$9,Базаданных[[#This Row],[Чей клиент]])))","v":true},{"$f":"IF(Базаданных[[#This Row],[Статус2]],COUNTIF($T$2:Базаданных[[#This Row],[Статус2]],TRUE),\"\")","v":91},{"$f":"IFERROR(INDEX(Базаданных[Чей клиент],MATCH(ROWS($U$2:Базаданных[[#This Row],[Индекс3]]),Базаданных[Индекс3],0)),\"\")","v":"Нерсесов Давид"}]
["2019-04-01",43568.775321527777,13,"суббота","Апрель","2019",0,"-",0,"-",3300,"-",0,"-","Гречихина Юля","Андрей (Горбушка 109)",{"$f":"NOT(ISERROR(SEARCH('Форма ввода'!$C$5,Базаданных[[#This Row],[Клиент]])))","v":false},{"$f":"IF(Базаданных[[#This Row],[Статус]],COUNTIF($Q$2:Базаданных[[#This Row],[Статус]],TRUE),\"\")","v":""},{"$f":"IFERROR(INDEX(Базаданных[Клиент],MATCH(ROWS($R$2:Базаданных[[#This Row],[Индекс]]),Базаданных[Индекс],0)),\"\")","v":""},{"$f":"NOT(ISERROR(SEARCH('Форма ввода'!$C$9,Базаданных[[#This Row],[Чей клиент]])))","v":true},{"$f":"IF(Базаданных[[#This Row],[Статус2]],COUNTIF($T$2:Базаданных[[#This Row],[Статус2]],TRUE),\"\")","v":92},{"$f":"IFERROR(INDEX(Базаданных[Чей клиент],MATCH(ROWS($U$2:Базаданных[[#This Row],[Индекс3]]),Базаданных[Индекс3],0)),\"\")","v":"Нерсесов Давид"}]
["2019-04-01",43568.775693402778,13,"суббота","Апрель","2019",0,"-",0,"-",13300,"-",0,"-","Нерсесов Давид","Эльнар Пермь",{"$f":"NOT(ISERROR(SEARCH('Форма ввода'!$C$5,Базаданных[[#This Row],[Клиент]])))","v":false},{"$f":"IF(Базаданных[[#This Row],[Статус]],COUNTIF($Q$2:Базаданных[[#This Row],[Статус]],TRUE),\"\")","v":""},{"$f":"IFERROR(INDEX(Базаданных[Клиент],MATCH(ROWS($R$2:Базаданных[[#This Row],[Индекс]]),Базаданных[Индекс],0)),\"\")","v":""},{"$f":"NOT(ISERROR(SEARCH('Форма ввода'!$C$9,Базаданных[[#This Row],[Чей клиент]])))","v":true},{"$f":"IF(Базаданных[[#This Row],[Статус2]],COUNTIF($T$2:Базаданных[[#This Row],[Статус2]],TRUE),\"\")","v":93},{"$f":"IFERROR(INDEX(Базаданных[Чей клиент],MATCH(ROWS($U$2:Базаданных[[#This Row],[Индекс3]]),Базаданных[Индекс3],0)),\"\")","v":"Пименов Алексей"}]
["2019-04-01",43568.775881944443,13,"суббота","Апрель","2019",0,"-",0,"-",69940,"-",0,"-","Нерсесов Давид","Надир (К84 Царицино)",{"$f":"NOT(ISERROR(SEARCH('Форма ввода'!$C$5,Базаданных[[#This Row],[Клиент]])))","v":false},{"$f":"IF(Базаданных[[#This Row],[Статус]],COUNTIF($Q$2:Базаданных[[#This Row],[Статус]],TRUE),\"\")","v":""},{"$f":"IFERROR(INDEX(Базаданных[Клиент],MATCH(ROWS($R$2:Базаданных[[#This Row],[Индекс]]),Базаданных[Индекс],0)),\"\")","v":""},{"$f":"NOT(ISERROR(SEARCH('Форма ввода'!$C$9,Базаданных[[#This Row],[Чей клиент]])))","v":true},{"$f":"IF(Базаданных[[#This Row],[Статус2]],COUNTIF($T$2:Базаданных[[#This Row],[Статус2]],TRUE),\"\")","v":94},{"$f":"IFERROR(INDEX(Базаданных[Чей клиент],MATCH(ROWS($U$2:Базаданных[[#This Row],[Индекс3]]),Базаданных[Индекс3],0)),\"\")","v":"Пименов Алексей"}]
["2019-04-01",43568.776170486111,13,"суббота","Апрель","2019",0,"-",0,"-",6620,"-",0,"-","Пименов Алексей","Светлана Тверь",{"$f":"NOT(ISERROR(SEARCH('Форма ввода'!$C$5,Базаданных[[#This Row],[Клиент]])))","v":false},{"$f":"IF(Базаданных[[#This Row],[Статус]],COUNTIF($Q$2:Базаданных[[#This Row],[Статус]],TRUE),\"\")","v":""},{"$f":"IFERROR(INDEX(Базаданных[Клиент],MATCH(ROWS($R$2:Базаданных[[#This Row],[Индекс]]),Базаданных[Индекс],0)),\"\")","v":""},{"$f":"NOT(ISERROR(SEARCH('Форма ввода'!$C$9,Базаданных[[#This Row],[Чей клиент]])))","v":true},{"$f":"IF(Базаданных[[#This Row],[Статус2]],COUNTIF($T$2:Базаданных[[#This Row],[Статус2]],TRUE),\"\")","v":95},{"$f":"IFERROR(INDEX(Базаданных[Чей клиент],MATCH(ROWS($U$2:Базаданных[[#This Row],[Индекс3]]),Базаданных[Индекс3],0)),\"\")","v":"Гречихина Юля"}]
["2019-04-02T18:39:23",43568.777354050922,13,"суббота","Апрель","2019",4800,"-",0,"-",0,"-",0,"-","Пименов Алексей","ИП Кунин Алексей Михайлович",{"$f":"NOT(ISERROR(SEARCH('Форма ввода'!$C$5,Базаданных[[#This Row],[Клиент]])))","v":false},{"$f":"IF(Базаданных[[#This Row],[Статус]],COUNTIF($Q$2:Базаданных[[#This Row],[Статус]],TRUE),\"\")","v":""},{"$f":"IFERROR(INDEX(Базаданных[Клиент],MATCH(ROWS($R$2:Базаданных[[#This Row],[Индекс]]),Базаданных[Индекс],0)),\"\")","v":""},{"$f":"NOT(ISERROR(SEARCH('Форма ввода'!$C$9,Базаданных[[#This Row],[Чей клиент]])))","v":true},{"$f":"IF(Базаданных[[#This Row],[Статус2]],COUNTIF($T$2:Базаданных[[#This Row],[Статус2]],TRUE),\"\")","v":96},{"$f":"IFERROR(INDEX(Базаданных[Чей клиент],MATCH(ROWS($U$2:Базаданных[[#This Row],[Индекс3]]),Базаданных[Индекс3],0)),\"\")","v":"Гречихина Юля"}]
["2019-04-02T18:39:23",43568.777573842592,13,"суббота","Апрель","2019",22100,"-",0,"-",0,"-",0,"-","Гречихина Юля","Александр (Черемушки 2B-15)",{"$f":"NOT(ISERROR(SEARCH('Форма ввода'!$C$5,Базаданных[[#This Row],[Клиент]])))","v":false},{"$f":"IF(Базаданных[[#This Row],[Статус]],COUNTIF($Q$2:Базаданных[[#This Row],[Статус]],TRUE),\"\")","v":""},{"$f":"IFERROR(INDEX(Базаданных[Клиент],MATCH(ROWS($R$2:Базаданных[[#This Row],[Индекс]]),Базаданных[Индекс],0)),\"\")","v":""},{"$f":"NOT(ISERROR(SEARCH('Форма ввода'!$C$9,Базаданных[[#This Row],[Чей клиент]])))","v":true},{"$f":"IF(Базаданных[[#This Row],[Статус2]],COUNTIF($T$2:Базаданных[[#This Row],[Статус2]],TRUE),\"\")","v":97},{"$f":"IFERROR(INDEX(Базаданных[Чей клиент],MATCH(ROWS($U$2:Базаданных[[#This Row],[Индекс3]]),Базаданных[Индекс3],0)),\"\")","v":"Нерсесов Давид"}]
["2019-04-02T18:39:23",43568.777711805553,13,"суббота","Апрель","2019",6800,"-",0,"-",0,"-",0,"-","Гречихина Юля","Паша (Комиссионка Бутово)",{"$f":"NOT(ISERROR(SEARCH('Форма ввода'!$C$5,Базаданных[[#This Row],[Клиент]])))","v":false},{"$f":"IF(Базаданных[[#This Row],[Статус]],COUNTIF($Q$2:Базаданных[[#This Row],[Статус]],TRUE),\"\")","v":""},{"$f":"IFERROR(INDEX(Базаданных[Клиент],MATCH(ROWS($R$2:Базаданных[[#This Row],[Индекс]]),Базаданных[Индекс],0)),\"\")","v":""},{"$f":"NOT(ISERROR(SEARCH('Форма ввода'!$C$9,Базаданных[[#This Row],[Чей клиент]])))","v":true},{"$f":"IF(Базаданных[[#This Row],[Статус2]],COUNTIF($T$2:Базаданных[[#This Row],[Статус2]],TRUE),\"\")","v":98},{"$f":"IFERROR(INDEX(Базаданных[Чей клиент],MATCH(ROWS($U$2:Базаданных[[#This Row],[Индекс3]]),Базаданных[Индекс3],0)),\"\")","v":"Нерсесов Давид"}]
["2019-04-02T18:39:23",43568.777909490738,13,"суббота","Апрель","2019",0,"-",0,"-",0,"-",14600,"-","Нерсесов Давид","Нерсесов Давид ( AlexStore)",{"$f":"NOT(ISERROR(SEARCH('Форма ввода'!$C$5,Базаданных[[#This Row],[Клиент]])))","v":false},{"$f":"IF(Базаданных[[#This Row],[Статус]],COUNTIF($Q$2:Базаданных[[#This Row],[Статус]],TRUE),\"\")","v":""},{"$f":"IFERROR(INDEX(Базаданных[Клиент],MATCH(ROWS($R$2:Базаданных[[#This Row],[Индекс]]),Базаданных[Индекс],0)),\"\")","v":""},{"$f":"NOT(ISERROR(SEARCH('Форма ввода'!$C$9,Базаданных[[#This Row],[Чей клиент]])))","v":true},{"$f":"IF(Базаданных[[#This Row],[Статус2]],COUNTIF($T$2:Базаданных[[#This Row],[Статус2]],TRUE),\"\")","v":99},{"$f":"IFERROR(INDEX(Базаданных[Чей клиент],MATCH(ROWS($U$2:Базаданных[[#This Row],[Индекс3]]),Базаданных[Индекс3],0)),\"\")","v":"Пименов Алексей"}]
["2019-04-02T18:39:23",43568.778236574071,13,"суббота","Апрель","2019",0,"-",0,"-",0,"-",13300,"-","Нерсесов Давид","Эльнар Пермь",{"$f":"NOT(ISERROR(SEARCH('Форма ввода'!$C$5,Базаданных[[#This Row],[Клиент]])))","v":false},{"$f":"IF(Базаданных[[#This Row],[Статус]],COUNTIF($Q$2:Базаданных[[#This Row],[Статус]],TRUE),\"\")","v":""},{"$f":"IFERROR(INDEX(Базаданных[Клиент],MATCH(ROWS($R$2:Базаданных[[#This Row],[Индекс]]),Базаданных[Индекс],0)),\"\")","v":""},{"$f":"NOT(ISERROR(SEARCH('Форма ввода'!$C$9,Базаданных[[#This Row],[Чей клиент]])))","v":true},{"$f":"IF(Базаданных[[#This Row],[Статус2]],COUNTIF($T$2:Базаданных[[#This Row],[Статус2]],TRUE),\"\")","v":100},{"$f":"IFERROR(INDEX(Базаданных[Чей клиент],MATCH(ROWS($U$2:Базаданных[[#This Row],[Индекс3]]),Базаданных[Индекс3],0)),\"\")","v":"Пименов Алексей"}]
["2019-04-02T18:39:23",43568.778427662037,13,"суббота","Апрель","2019",0,"-",0,"-",6410,"-",0,"-","Пименов Алексей","Александр (Сызрань)",{"$f":"NOT(ISERROR(SEARCH('Форма ввода'!$C$5,Базаданных[[#This Row],[Клиент]])))","v":false},{"$f":"IF(Базаданных[[#This Row],[Статус]],COUNTIF($Q$2:Базаданных[[#This Row],[Статус]],TRUE),\"\")","v":""},{"$f":"IFERROR(INDEX(Базаданных[Клиент],MATCH(ROWS($R$2:Базаданных[[#This Row],[Индекс]]),Базаданных[Индекс],0)),\"\")","v":""},{"$f":"NOT(ISERROR(SEARCH('Форма ввода'!$C$9,Базаданных[[#This Row],[Чей клиент]])))","v":true},{"$f":"IF(Базаданных[[#This Row],[Статус2]],COUNTIF($T$2:Базаданных[[#This Row],[Статус2]],TRUE),\"\")","v":101},{"$f":"IFERROR(INDEX(Базаданных[Чей клиент],MATCH(ROWS($U$2:Базаданных[[#This Row],[Индекс3]]),Базаданных[Индекс3],0)),\"\")","v":"Пименов Алексей"}]
["2019-04-03T18:57:11",43568.789707638891,13,"суббота","Апрель","2019",690,"-",0,"-",0,"-",0,"-","Пименов Алексей","Александр (Сызрань)",{"$f":"NOT(ISERROR(SEARCH('Форма ввода'!$C$5,Базаданных[[#This Row],[Клиент]])))","v":false},{"$f":"IF(Базаданных[[#This Row],[Статус]],COUNTIF($Q$2:Базаданных[[#This Row],[Статус]],TRUE),\"\")","v":""},{"$f":"IFERROR(INDEX(Базаданных[Клиент],MATCH(ROWS($R$2:Базаданных[[#This Row],[Индекс]]),Базаданных[Индекс],0)),\"\")","v":""},{"$f":"NOT(ISERROR(SEARCH('Форма ввода'!$C$9,Базаданных[[#This Row],[Чей клиент]])))","v":true},{"$f":"IF(Базаданных[[#This Row],[Статус2]],COUNTIF($T$2:Базаданных[[#This Row],[Статус2]],TRUE),\"\")","v":102},{"$f":"IFERROR(INDEX(Базаданных[Чей клиент],MATCH(ROWS($U$2:Базаданных[[#This Row],[Индекс3]]),Базаданных[Индекс3],0)),\"\")","v":"Пименов Алексей"}]
["2019-04-03T18:57:11",43568.789883912039,13,"суббота","Апрель","2019",0,"-",99900,"-",0,"-",0,"-","Пименов Алексей","Игорь Костяк (Киров Вятка)",{"$f":"NOT(ISERROR(SEARCH('Форма ввода'!$C$5,Базаданных[[#This Row],[Клиент]])))","v":false},{"$f":"IF(Базаданных[[#This Row],[Статус]],COUNTIF($Q$2:Базаданных[[#This Row],[Статус]],TRUE),\"\")","v":""},{"$f":"IFERROR(INDEX(Базаданных[Клиент],MATCH(ROWS($R$2:Базаданных[[#This Row],[Индекс]]),Базаданных[Индекс],0)),\"\")","v":""},{"$f":"NOT(ISERROR(SEARCH('Форма ввода'!$C$9,Базаданных[[#This Row],[Чей клиент]])))","v":true},{"$f":"IF(Базаданных[[#This Row],[Статус2]],COUNTIF($T$2:Базаданных[[#This Row],[Статус2]],TRUE),\"\")","v":103},{"$f":"IFERROR(INDEX(Базаданных[Чей клиент],MATCH(ROWS($U$2:Базаданных[[#This Row],[Индекс3]]),Базаданных[Индекс3],0)),\"\")","v":"Пименов Алексей"}]
["2019-04-03T18:57:11",43568.79022534722,13,"суббота","Апрель","2019",20280,"-",0,"-",0,"-",0,"-","Пименов Алексей","Шанхоев Аюп (Назрань)",{"$f":"NOT(ISERROR(SEARCH('Форма ввода'!$C$5,Базаданных[[#This Row],[Клиент]])))","v":false},{"$f":"IF(Базаданных[[#This Row],[Статус]],COUNTIF($Q$2:Базаданных[[#This Row],[Статус]],TRUE),\"\")","v":""},{"$f":"IFERROR(INDEX(Базаданных[Клиент],MATCH(ROWS($R$2:Базаданных[[#This Row],[Индекс]]),Базаданных[Индекс],0)),\"\")","v":""},{"$f":"NOT(ISERROR(SEARCH('Форма ввода'!$C$9,Базаданных[[#This Row],[Чей клиент]])))","v":true},{"$f":"IF(Базаданных[[#This Row],[Статус2]],COUNTIF($T$2:Базаданных[[#This Row],[Статус2]],TRUE),\"\")","v":104},{"$f":"IFERROR(INDEX(Базаданных[Чей клиент],MATCH(ROWS($U$2:Базаданных[[#This Row],[Индекс3]]),Базаданных[Индекс3],0)),\"\")","v":"Нерсесов Давид"}]
["2019-04-03T18:57:11",43568.790425347222,13,"суббота","Апрель","2019",400,"-",0,"-",0,"-",0,"-","Пименов Алексей","Алексей (Нижний тагил)",{"$f":"NOT(ISERROR(SEARCH('Форма ввода'!$C$5,Базаданных[[#This Row],[Клиент]])))","v":false},{"$f":"IF(Базаданных[[#This Row],[Статус]],COUNTIF($Q$2:Базаданных[[#This Row],[Статус]],TRUE),\"\")","v":""},{"$f":"IFERROR(INDEX(Базаданных[Клиент],MATCH(ROWS($R$2:Базаданных[[#This Row],[Индекс]]),Базаданных[Индекс],0)),\"\")","v":""},{"$f":"NOT(ISERROR(SEARCH('Форма ввода'!$C$9,Базаданных[[#This Row],[Чей клиент]])))","v":true},{"$f":"IF(Базаданных[[#This Row],[Статус2]],COUNTIF($T$2:Базаданных[[#This Row],[Статус2]],TRUE),\"\")","v":105},{"$f":"IFERROR(INDEX(Базаданных[Чей клиент],MATCH(ROWS($U$2:Базаданных[[#This Row],[Индекс3]]),Базаданных[Индекс3],0)),\"\")","v":"Гречихина Юля"}]
["2019-04-03T18:57:11",43568.790688310182,13,"суббота","Апрель","2019",17000,"-",0,"-",0,"-",0,"-","Нерсесов Давид","Александр Скупка (Нагатинская)",{"$f":"NOT(ISERROR(SEARCH('Форма ввода'!$C$5,Базаданных[[#This Row],[Клиент]])))","v":false},{"$f":"IF(Базаданных[[#This Row],[Статус]],COUNTIF($Q$2:Базаданных[[#This Row],[Статус]],TRUE),\"\")","v":""},{"$f":"IFERROR(INDEX(Базаданных[Клиент],MATCH(ROWS($R$2:Базаданных[[#This Row],[Индекс]]),Базаданных[Индекс],0)),\"\")","v":""},{"$f":"NOT(ISERROR(SEARCH('Форма ввода'!$C$9,Базаданных[[#This Row],[Чей клиент]])))","v":true},{"$f":"IF(Базаданных[[#This Row],[Статус2]],COUNTIF($T$2:Базаданных[[#This Row],[Статус2]],TRUE),\"\")","v":106},{"$f":"IFERROR(INDEX(Базаданных[Чей клиент],MATCH(ROWS($U$2:Базаданных[[#This Row],[Индекс3]]),Базаданных[Индекс3],0)),\"\")","v":"Нерсесов Давид"}]
["2019-04-03T18:57:11",43568.790937268517,13,"суббота","Апрель","2019",18700,"-",0,"-",0,"-",0,"-","Гречихина Юля","Александр (Одинцово рынок)",{"$f":"NOT(ISERROR(SEARCH('Форма ввода'!$C$5,Базаданных[[#This Row],[Клиент]])))","v":false},{"$f":"IF(Базаданных[[#This Row],[Статус]],COUNTIF($Q$2:Базаданных[[#This Row],[Статус]],TRUE),\"\")","v":""},{"$f":"IFERROR(INDEX(Базаданных[Клиент],MATCH(ROWS($R$2:Базаданных[[#This Row],[Индекс]]),Базаданных[Индекс],0)),\"\")","v":""},{"$f":"NOT(ISERROR(SEARCH('Форма ввода'!$C$9,Базаданных[[#This Row],[Чей клиент]])))","v":true},{"$f":"IF(Базаданных[[#This Row],[Статус2]],COUNTIF($T$2:Базаданных[[#This Row],[Статус2]],TRUE),\"\")","v":107},{"$f":"IFERROR(INDEX(Базаданных[Чей клиент],MATCH(ROWS($U$2:Базаданных[[#This Row],[Индекс3]]),Базаданных[Индекс3],0)),\"\")","v":"Нерсесов Давид"}]
["2019-04-03T18:57:11",43568.79112962963,13,"суббота","Апрель","2019",0,"-",0,"-",0,"-",32500,"-","Нерсесов Давид","Нерсесов Давид ( AlexStore)",{"$f":"NOT(ISERROR(SEARCH('Форма ввода'!$C$5,Базаданных[[#This Row],[Клиент]])))","v":false},{"$f":"IF(Базаданных[[#This Row],[Статус]],COUNTIF($Q$2:Базаданных[[#This Row],[Статус]],TRUE),\"\")","v":""},{"$f":"IFERROR(INDEX(Базаданных[Клиент],MATCH(ROWS($R$2:Базаданных[[#This Row],[Индекс]]),Базаданных[Индекс],0)),\"\")","v":""},{"$f":"NOT(ISERROR(SEARCH('Форма ввода'!$C$9,Базаданных[[#This Row],[Чей клиент]])))","v":true},{"$f":"IF(Базаданных[[#This Row],[Статус2]],COUNTIF($T$2:Базаданных[[#This Row],[Статус2]],TRUE),\"\")","v":108},{"$f":"IFERROR(INDEX(Базаданных[Чей клиент],MATCH(ROWS($U$2:Базаданных[[#This Row],[Индекс3]]),Базаданных[Индекс3],0)),\"\")","v":"Нерсесо Давид"}]
["2019-04-03T18:57:11",43568.791332523149,13,"суббота","Апрель","2019",0,"-",0,"-",17000,"-",0,"-","Нерсесов Давид","Василий T-95 (Савеловский)",{"$f":"NOT(ISERROR(SEARCH('Форма ввода'!$C$5,Базаданных[[#This Row],[Клиент]])))","v":false},{"$f":"IF(Базаданных[[#This Row],[Статус]],COUNTIF($Q$2:Базаданных[[#This Row],[Статус]],TRUE),\"\")","v":""},{"$f":"IFERROR(INDEX(Базаданных[Клиент],MATCH(ROWS($R$2:Базаданных[[#This Row],[Индекс]]),Базаданных[Индекс],0)),\"\")","v":""},{"$f":"NOT(ISERROR(SEARCH('Форма ввода'!$C$9,Базаданных[[#This Row],[Чей клиент]])))","v":true},{"$f":"IF(Базаданных[[#This Row],[Статус2]],COUNTIF($T$2:Базаданных[[#This Row],[Статус2]],TRUE),\"\")","v":109},{"$f":"IFERROR(INDEX(Базаданных[Чей клиент],MATCH(ROWS($U$2:Базаданных[[#This Row],[Индекс3]]),Базаданных[Индекс3],0)),\"\")","v":"Пименов Алексей"}]
["2019-04-03T18:57:11",43568.791476388891,13,"суббота","Апрель","2019",0,"-",0,"-",0,"-",9200,"-","Нерсесо Давид","Скупка Алтуфьево Андрей",{"$f":"NOT(ISERROR(SEARCH('Форма ввода'!$C$5,Базаданных[[#This Row],[Клиент]])))","v":false},{"$f":"IF(Базаданных[[#This Row],[Статус]],COUNTIF($Q$2:Базаданных[[#This Row],[Статус]],TRUE),\"\")","v":""},{"$f":"IFERROR(INDEX(Базаданных[Клиент],MATCH(ROWS($R$2:Базаданных[[#This Row],[Индекс]]),Базаданных[Индекс],0)),\"\")","v":""},{"$f":"NOT(ISERROR(SEARCH('Форма ввода'!$C$9,Базаданных[[#This Row],[Чей клиент]])))","v":true},{"$f":"IF(Базаданных[[#This Row],[Статус2]],COUNTIF($T$2:Базаданных[[#This Row],[Статус2]],TRUE),\"\")","v":110},{"$f":"IFERROR(INDEX(Базаданных[Чей клиент],MATCH(ROWS($U$2:Базаданных[[#This Row],[Индекс3]]),Базаданных[Индекс3],0)),\"\")","v":"Пименов Алексей"}]
["2019-04-03T18:57:11",43568.791648032406,13,"суббота","Апрель","2019",0,"-",0,"-",0,"-",6410,"-","Пименов Алексей","Александр (Сызрань)",{"$f":"NOT(ISERROR(SEARCH('Форма ввода'!$C$5,Базаданных[[#This Row],[Клиент]])))","v":false},{"$f":"IF(Базаданных[[#This Row],[Статус]],COUNTIF($Q$2:Базаданных[[#This Row],[Статус]],TRUE),\"\")","v":""},{"$f":"IFERROR(INDEX(Базаданных[Клиент],MATCH(ROWS($R$2:Базаданных[[#This Row],[Индекс]]),Базаданных[Индекс],0)),\"\")","v":""},{"$f":"NOT(ISERROR(SEARCH('Форма ввода'!$C$9,Базаданных[[#This Row],[Чей клиент]])))","v":true},{"$f":"IF(Базаданных[[#This Row],[Статус2]],COUNTIF($T$2:Базаданных[[#This Row],[Статус2]],TRUE),\"\")","v":111},{"$f":"IFERROR(INDEX(Базаданных[Чей клиент],MATCH(ROWS($U$2:Базаданных[[#This Row],[Индекс3]]),Базаданных[Индекс3],0)),\"\")","v":"Нерсесов Давид"}]
["2019-04-04T19:02:46",43568.793589120367,13,"суббота","Апрель","2019",0,"-",20280,"-",0,"-",0,"-","Пименов Алексей","Шанхоев Аюп (Назрань)",{"$f":"NOT(ISERROR(SEARCH('Форма ввода'!$C$5,Базаданных[[#This Row],[Клиент]])))","v":false},{"$f":"IF(Базаданных[[#This Row],[Статус]],COUNTIF($Q$2:Базаданных[[#This Row],[Статус]],TRUE),\"\")","v":""},{"$f":"IFERROR(INDEX(Базаданных[Клиент],MATCH(ROWS($R$2:Базаданных[[#This Row],[Индекс]]),Базаданных[Индекс],0)),\"\")","v":""},{"$f":"NOT(ISERROR(SEARCH('Форма ввода'!$C$9,Базаданных[[#This Row],[Чей клиент]])))","v":true},{"$f":"IF(Базаданных[[#This Row],[Статус2]],COUNTIF($T$2:Базаданных[[#This Row],[Статус2]],TRUE),\"\")","v":112},{"$f":"IFERROR(INDEX(Базаданных[Чей клиент],MATCH(ROWS($U$2:Базаданных[[#This Row],[Индекс3]]),Базаданных[Индекс3],0)),\"\")","v":"Нерсесов Давид"}]
["2019-04-04T19:02:46",43568.793799652776,13,"суббота","Апрель","2019",18930,"-",0,"-",0,"-",0,"-","Нерсесов Давид","Надир (К84 Царицино)",{"$f":"NOT(ISERROR(SEARCH('Форма ввода'!$C$5,Базаданных[[#This Row],[Клиент]])))","v":false},{"$f":"IF(Базаданных[[#This Row],[Статус]],COUNTIF($Q$2:Базаданных[[#This Row],[Статус]],TRUE),\"\")","v":""},{"$f":"IFERROR(INDEX(Базаданных[Клиент],MATCH(ROWS($R$2:Базаданных[[#This Row],[Индекс]]),Базаданных[Индекс],0)),\"\")","v":""},{"$f":"NOT(ISERROR(SEARCH('Форма ввода'!$C$9,Базаданных[[#This Row],[Чей клиент]])))","v":true},{"$f":"IF(Базаданных[[#This Row],[Статус2]],COUNTIF($T$2:Базаданных[[#This Row],[Статус2]],TRUE),\"\")","v":113},{"$f":"IFERROR(INDEX(Базаданных[Чей клиент],MATCH(ROWS($U$2:Базаданных[[#This Row],[Индекс3]]),Базаданных[Индекс3],0)),\"\")","v":"Гречихина Юля"}]
["2019-04-04T19:02:46",43568.794835532404,13,"суббота","Апрель","2019",131300,"-",0,"-",0,"-",0,"-","Нерсесов Давид","Мухамед (Теплый стан)",{"$f":"NOT(ISERROR(SEARCH('Форма ввода'!$C$5,Базаданных[[#This Row],[Клиент]])))","v":false},{"$f":"IF(Базаданных[[#This Row],[Статус]],COUNTIF($Q$2:Базаданных[[#This Row],[Статус]],TRUE),\"\")","v":""},{"$f":"IFERROR(INDEX(Базаданных[Клиент],MATCH(ROWS($R$2:Базаданных[[#This Row],[Индекс]]),Базаданных[Индекс],0)),\"\")","v":""},{"$f":"NOT(ISERROR(SEARCH('Форма ввода'!$C$9,Базаданных[[#This Row],[Чей клиент]])))","v":true},{"$f":"IF(Базаданных[[#This Row],[Статус2]],COUNTIF($T$2:Базаданных[[#This Row],[Статус2]],TRUE),\"\")","v":114},{"$f":"IFERROR(INDEX(Базаданных[Чей клиент],MATCH(ROWS($U$2:Базаданных[[#This Row],[Индекс3]]),Базаданных[Индекс3],0)),\"\")","v":"Гречихина Юля"}]
["2019-04-04T19:02:46",43568.797085532409,13,"суббота","Апрель","2019",0,"-",22100,"-",0,"-",0,"-","Гречихина Юля","Александр (Черемушки 2B-15)",{"$f":"NOT(ISERROR(SEARCH('Форма ввода'!$C$5,Базаданных[[#This Row],[Клиент]])))","v":false},{"$f":"IF(Базаданных[[#This Row],[Статус]],COUNTIF($Q$2:Базаданных[[#This Row],[Статус]],TRUE),\"\")","v":""},{"$f":"IFERROR(INDEX(Базаданных[Клиент],MATCH(ROWS($R$2:Базаданных[[#This Row],[Индекс]]),Базаданных[Индекс],0)),\"\")","v":""},{"$f":"NOT(ISERROR(SEARCH('Форма ввода'!$C$9,Базаданных[[#This Row],[Чей клиент]])))","v":true},{"$f":"IF(Базаданных[[#This Row],[Статус2]],COUNTIF($T$2:Базаданных[[#This Row],[Статус2]],TRUE),\"\")","v":115},{"$f":"IFERROR(INDEX(Базаданных[Чей клиент],MATCH(ROWS($U$2:Базаданных[[#This Row],[Индекс3]]),Базаданных[Индекс3],0)),\"\")","v":"Нерсесов Давид"}]
["2019-04-04T19:02:46",43568.79730648148,13,"суббота","Апрель","2019",0,"-",18700,"-",0,"-",0,"-","Гречихина Юля","Александр (Одинцово рынок)",{"$f":"NOT(ISERROR(SEARCH('Форма ввода'!$C$5,Базаданных[[#This Row],[Клиент]])))","v":false},{"$f":"IF(Базаданных[[#This Row],[Статус]],COUNTIF($Q$2:Базаданных[[#This Row],[Статус]],TRUE),\"\")","v":""},{"$f":"IFERROR(INDEX(Базаданных[Клиент],MATCH(ROWS($R$2:Базаданных[[#This Row],[Индекс]]),Базаданных[Индекс],0)),\"\")","v":""},{"$f":"NOT(ISERROR(SEARCH('Форма ввода'!$C$9,Базаданных[[#This Row],[Чей клиент]])))","v":true},{"$f":"IF(Базаданных[[#This Row],[Статус2]],COUNTIF($T$2:Базаданных[[#This Row],[Статус2]],TRUE),\"\")","v":116},{"$f":"IFERROR(INDEX(Базаданных[Чей клиент],MATCH(ROWS($U$2:Базаданных[[#This Row],[Индекс3]]),Базаданных[Индекс3],0)),\"\")","v":"Гречихина Юля"}]
["2019-04-04T19:02:46",43568.797516203704,13,"суббота","Апрель","2019",0,"-",0,"-",207700,"-",0,"-","Нерсесов Давид","Нерсесов Давид ( AlexStore)",{"$f":"NOT(ISERROR(SEARCH('Форма ввода'!$C$5,Базаданных[[#This Row],[Клиент]])))","v":false},{"$f":"IF(Базаданных[[#This Row],[Статус]],COUNTIF($Q$2:Базаданных[[#This Row],[Статус]],TRUE),\"\")","v":""},{"$f":"IFERROR(INDEX(Базаданных[Клиент],MATCH(ROWS($R$2:Базаданных[[#This Row],[Индекс]]),Базаданных[Индекс],0)),\"\")","v":""},{"$f":"NOT(ISERROR(SEARCH('Форма ввода'!$C$9,Базаданных[[#This Row],[Чей клиент]])))","v":true},{"$f":"IF(Базаданных[[#This Row],[Статус2]],COUNTIF($T$2:Базаданных[[#This Row],[Статус2]],TRUE),\"\")","v":117},{"$f":"IFERROR(INDEX(Базаданных[Чей клиент],MATCH(ROWS($U$2:Базаданных[[#This Row],[Индекс3]]),Базаданных[Индекс3],0)),\"\")","v":"Пименов Алексей"}]
["2019-04-04T19:02:46",43568.797978240742,13,"суббота","Апрель","2019",0,"-",0,"-",46500,"-",0,"-","Гречихина Юля","Геворг ",{"$f":"NOT(ISERROR(SEARCH('Форма ввода'!$C$5,Базаданных[[#This Row],[Клиент]])))","v":false},{"$f":"IF(Базаданных[[#This Row],[Статус]],COUNTIF($Q$2:Базаданных[[#This Row],[Статус]],TRUE),\"\")","v":""},{"$f":"IFERROR(INDEX(Базаданных[Клиент],MATCH(ROWS($R$2:Базаданных[[#This Row],[Индекс]]),Базаданных[Индекс],0)),\"\")","v":""},{"$f":"NOT(ISERROR(SEARCH('Форма ввода'!$C$9,Базаданных[[#This Row],[Чей клиент]])))","v":true},{"$f":"IF(Базаданных[[#This Row],[Статус2]],COUNTIF($T$2:Базаданных[[#This Row],[Статус2]],TRUE),\"\")","v":118},{"$f":"IFERROR(INDEX(Базаданных[Чей клиент],MATCH(ROWS($U$2:Базаданных[[#This Row],[Индекс3]]),Базаданных[Индекс3],0)),\"\")","v":"Пименов Алексей"}]
["2019-04-04T19:02:46",43568.798443171298,13,"суббота","Апрель","2019",0,"-",0,"-",46500,"-",0,"-","Пименов Алексей","Булгаков Даниил (Екатеренбург)",{"$f":"NOT(ISERROR(SEARCH('Форма ввода'!$C$5,Базаданных[[#This Row],[Клиент]])))","v":false},{"$f":"IF(Базаданных[[#This Row],[Статус]],COUNTIF($Q$2:Базаданных[[#This Row],[Статус]],TRUE),\"\")","v":""},{"$f":"IFERROR(INDEX(Базаданных[Клиент],MATCH(ROWS($R$2:Базаданных[[#This Row],[Индекс]]),Базаданных[Индекс],0)),\"\")","v":""},{"$f":"NOT(ISERROR(SEARCH('Форма ввода'!$C$9,Базаданных[[#This Row],[Чей клиент]])))","v":true},{"$f":"IF(Базаданных[[#This Row],[Статус2]],COUNTIF($T$2:Базаданных[[#This Row],[Статус2]],TRUE),\"\")","v":119},{"$f":"IFERROR(INDEX(Базаданных[Чей клиент],MATCH(ROWS($U$2:Базаданных[[#This Row],[Индекс3]]),Базаданных[Индекс3],0)),\"\")","v":"Пименов Алексей"}]
["2019-04-04T19:02:46",43568.798674074074,13,"суббота","Апрель","2019",0,"-",0,"-",33000,"-",0,"-","Пименов Алексей","Александр Дергач (Бронницы)",{"$f":"NOT(ISERROR(SEARCH('Форма ввода'!$C$5,Базаданных[[#This Row],[Клиент]])))","v":false},{"$f":"IF(Базаданных[[#This Row],[Статус]],COUNTIF($Q$2:Базаданных[[#This Row],[Статус]],TRUE),\"\")","v":""},{"$f":"IFERROR(INDEX(Базаданных[Клиент],MATCH(ROWS($R$2:Базаданных[[#This Row],[Индекс]]),Базаданных[Индекс],0)),\"\")","v":""},{"$f":"NOT(ISERROR(SEARCH('Форма ввода'!$C$9,Базаданных[[#This Row],[Чей клиент]])))","v":true},{"$f":"IF(Базаданных[[#This Row],[Статус2]],COUNTIF($T$2:Базаданных[[#This Row],[Статус2]],TRUE),\"\")","v":120},{"$f":"IFERROR(INDEX(Базаданных[Чей клиент],MATCH(ROWS($U$2:Базаданных[[#This Row],[Индекс3]]),Базаданных[Индекс3],0)),\"\")","v":"Гречихина Юля"}]
["2019-04-04T19:02:46",43568.800961921297,13,"суббота","Апрель","2019",0,"-",0,"-",55300,"-",0,"-","Пименов Алексей","Частное лицо",{"$f":"NOT(ISERROR(SEARCH('Форма ввода'!$C$5,Базаданных[[#This Row],[Клиент]])))","v":false},{"$f":"IF(Базаданных[[#This Row],[Статус]],COUNTIF($Q$2:Базаданных[[#This Row],[Статус]],TRUE),\"\")","v":""},{"$f":"IFERROR(INDEX(Базаданных[Клиент],MATCH(ROWS($R$2:Базаданных[[#This Row],[Индекс]]),Базаданных[Индекс],0)),\"\")","v":""},{"$f":"NOT(ISERROR(SEARCH('Форма ввода'!$C$9,Базаданных[[#This Row],[Чей клиент]])))","v":true},{"$f":"IF(Базаданных[[#This Row],[Статус2]],COUNTIF($T$2:Базаданных[[#This Row],[Статус2]],TRUE),\"\")","v":121},{"$f":"IFERROR(INDEX(Базаданных[Чей клиент],MATCH(ROWS($U$2:Базаданных[[#This Row],[Индекс3]]),Базаданных[Индекс3],0)),\"\")","v":"Нерсесов Давид"}]
["2019-04-05T19:18:01",43568.804178472223,13,"суббота","Апрель","2019",3205,"-",0,"-",0,"-",0,"-","Гречихина Юля","Саргисян Николаяй",{"$f":"NOT(ISERROR(SEARCH('Форма ввода'!$C$5,Базаданных[[#This Row],[Клиент]])))","v":false},{"$f":"IF(Базаданных[[#This Row],[Статус]],COUNTIF($Q$2:Базаданных[[#This Row],[Статус]],TRUE),\"\")","v":""},{"$f":"IFERROR(INDEX(Базаданных[Клиент],MATCH(ROWS($R$2:Базаданных[[#This Row],[Индекс]]),Базаданных[Индекс],0)),\"\")","v":""},{"$f":"NOT(ISERROR(SEARCH('Форма ввода'!$C$9,Базаданных[[#This Row],[Чей клиент]])))","v":true},{"$f":"IF(Базаданных[[#This Row],[Статус2]],COUNTIF($T$2:Базаданных[[#This Row],[Статус2]],TRUE),\"\")","v":122},{"$f":"IFERROR(INDEX(Базаданных[Чей клиент],MATCH(ROWS($U$2:Базаданных[[#This Row],[Индекс3]]),Базаданных[Индекс3],0)),\"\")","v":"Нерсесов Давид"}]
["2019-04-05T19:18:01",43568.804379398149,13,"суббота","Апрель","2019",31000,"-",0,"-",0,"-",0,"-","Нерсесов Давид","Нерсесов Давид ( AlexStore)",{"$f":"NOT(ISERROR(SEARCH('Форма ввода'!$C$5,Базаданных[[#This Row],[Клиент]])))","v":false},{"$f":"IF(Базаданных[[#This Row],[Статус]],COUNTIF($Q$2:Базаданных[[#This Row],[Статус]],TRUE),\"\")","v":""},{"$f":"IFERROR(INDEX(Базаданных[Клиент],MATCH(ROWS($R$2:Базаданных[[#This Row],[Индекс]]),Базаданных[Индекс],0)),\"\")","v":""},{"$f":"NOT(ISERROR(SEARCH('Форма ввода'!$C$9,Базаданных[[#This Row],[Чей клиент]])))","v":true},{"$f":"IF(Базаданных[[#This Row],[Статус2]],COUNTIF($T$2:Базаданных[[#This Row],[Статус2]],TRUE),\"\")","v":123},{"$f":"IFERROR(INDEX(Базаданных[Чей клиент],MATCH(ROWS($U$2:Базаданных[[#This Row],[Индекс3]]),Базаданных[Индекс3],0)),\"\")","v":"Нерсесов Давид"}]
["2019-04-05T19:18:01",43568.804570138891,13,"суббота","Апрель","2019",0,"-",18930,"-",0,"-",0,"-","Нерсесов Давид","Надир (К84 Царицино)",{"$f":"NOT(ISERROR(SEARCH('Форма ввода'!$C$5,Базаданных[[#This Row],[Клиент]])))","v":false},{"$f":"IF(Базаданных[[#This Row],[Статус]],COUNTIF($Q$2:Базаданных[[#This Row],[Статус]],TRUE),\"\")","v":""},{"$f":"IFERROR(INDEX(Базаданных[Клиент],MATCH(ROWS($R$2:Базаданных[[#This Row],[Индекс]]),Базаданных[Индекс],0)),\"\")","v":""},{"$f":"NOT(ISERROR(SEARCH('Форма ввода'!$C$9,Базаданных[[#This Row],[Чей клиент]])))","v":true},{"$f":"IF(Базаданных[[#This Row],[Статус2]],COUNTIF($T$2:Базаданных[[#This Row],[Статус2]],TRUE),\"\")","v":124},{"$f":"IFERROR(INDEX(Базаданных[Чей клиент],MATCH(ROWS($U$2:Базаданных[[#This Row],[Индекс3]]),Базаданных[Индекс3],0)),\"\")","v":"Нерсесов Давид"}]
["2019-04-05T19:18:01",43568.804729861113,13,"суббота","Апрель","2019",0,"-",92300,"-",0,"-",0,"-","Нерсесов Давид","Мухамед (Теплый стан)",{"$f":"NOT(ISERROR(SEARCH('Форма ввода'!$C$5,Базаданных[[#This Row],[Клиент]])))","v":false},{"$f":"IF(Базаданных[[#This Row],[Статус]],COUNTIF($Q$2:Базаданных[[#This Row],[Статус]],TRUE),\"\")","v":""},{"$f":"IFERROR(INDEX(Базаданных[Клиент],MATCH(ROWS($R$2:Базаданных[[#This Row],[Индекс]]),Базаданных[Индекс],0)),\"\")","v":""},{"$f":"NOT(ISERROR(SEARCH('Форма ввода'!$C$9,Базаданных[[#This Row],[Чей клиент]])))","v":true},{"$f":"IF(Базаданных[[#This Row],[Статус2]],COUNTIF($T$2:Базаданных[[#This Row],[Статус2]],TRUE),\"\")","v":125},{"$f":"IFERROR(INDEX(Базаданных[Чей клиент],MATCH(ROWS($U$2:Базаданных[[#This Row],[Индекс3]]),Базаданных[Индекс3],0)),\"\")","v":"Гречихина Юля"}]
["2019-04-05T19:18:01",43568.805084953703,13,"суббота","Апрель","2019",33730,"-",0,"-",0,"-",0,"-","Нерсесов Давид","Карен (МобиПро24)",{"$f":"NOT(ISERROR(SEARCH('Форма ввода'!$C$5,Базаданных[[#This Row],[Клиент]])))","v":false},{"$f":"IF(Базаданных[[#This Row],[Статус]],COUNTIF($Q$2:Базаданных[[#This Row],[Статус]],TRUE),\"\")","v":""},{"$f":"IFERROR(INDEX(Базаданных[Клиент],MATCH(ROWS($R$2:Базаданных[[#This Row],[Индекс]]),Базаданных[Индекс],0)),\"\")","v":""},{"$f":"NOT(ISERROR(SEARCH('Форма ввода'!$C$9,Базаданных[[#This Row],[Чей клиент]])))","v":true},{"$f":"IF(Базаданных[[#This Row],[Статус2]],COUNTIF($T$2:Базаданных[[#This Row],[Статус2]],TRUE),\"\")","v":126},{"$f":"IFERROR(INDEX(Базаданных[Чей клиент],MATCH(ROWS($U$2:Базаданных[[#This Row],[Индекс3]]),Базаданных[Индекс3],0)),\"\")","v":"Нерсесов Давид"}]
["2019-04-05T19:18:01",43568.805337962964,13,"суббота","Апрель","2019",7400,"-",0,"-",0,"-",0,"-","Гречихина Юля","Александр (Черемушки 2B-15)",{"$f":"NOT(ISERROR(SEARCH('Форма ввода'!$C$5,Базаданных[[#This Row],[Клиент]])))","v":false},{"$f":"IF(Базаданных[[#This Row],[Статус]],COUNTIF($Q$2:Базаданных[[#This Row],[Статус]],TRUE),\"\")","v":""},{"$f":"IFERROR(INDEX(Базаданных[Клиент],MATCH(ROWS($R$2:Базаданных[[#This Row],[Индекс]]),Базаданных[Индекс],0)),\"\")","v":""},{"$f":"NOT(ISERROR(SEARCH('Форма ввода'!$C$9,Базаданных[[#This Row],[Чей клиент]])))","v":true},{"$f":"IF(Базаданных[[#This Row],[Статус2]],COUNTIF($T$2:Базаданных[[#This Row],[Статус2]],TRUE),\"\")","v":127},{"$f":"IFERROR(INDEX(Базаданных[Чей клиент],MATCH(ROWS($U$2:Базаданных[[#This Row],[Индекс3]]),Базаданных[Индекс3],0)),\"\")","v":"Пименов Алексей"}]
["2019-04-05T19:18:01",43568.805564351853,13,"суббота","Апрель","2019",0,"-",0,"-",0,"-",210300,"-","Нерсесов Давид","Нерсесов Давид ( AlexStore)",{"$f":"NOT(ISERROR(SEARCH('Форма ввода'!$C$5,Базаданных[[#This Row],[Клиент]])))","v":false},{"$f":"IF(Базаданных[[#This Row],[Статус]],COUNTIF($Q$2:Базаданных[[#This Row],[Статус]],TRUE),\"\")","v":""},{"$f":"IFERROR(INDEX(Базаданных[Клиент],MATCH(ROWS($R$2:Базаданных[[#This Row],[Индекс]]),Базаданных[Индекс],0)),\"\")","v":""},{"$f":"NOT(ISERROR(SEARCH('Форма ввода'!$C$9,Базаданных[[#This Row],[Чей клиент]])))","v":true},{"$f":"IF(Базаданных[[#This Row],[Статус2]],COUNTIF($T$2:Базаданных[[#This Row],[Статус2]],TRUE),\"\")","v":128},{"$f":"IFERROR(INDEX(Базаданных[Чей клиент],MATCH(ROWS($U$2:Базаданных[[#This Row],[Индекс3]]),Базаданных[Индекс3],0)),\"\")","v":"Гречихина Юля"}]
["2019-04-05T19:18:01",43568.805728472224,13,"суббота","Апрель","2019",0,"-",0,"-",0,"-",29400,"-","Пименов Алексей","Александр (Сызрань)",{"$f":"NOT(ISERROR(SEARCH('Форма ввода'!$C$5,Базаданных[[#This Row],[Клиент]])))","v":false},{"$f":"IF(Базаданных[[#This Row],[Статус]],COUNTIF($Q$2:Базаданных[[#This Row],[Статус]],TRUE),\"\")","v":""},{"$f":"IFERROR(INDEX(Базаданных[Клиент],MATCH(ROWS($R$2:Базаданных[[#This Row],[Индекс]]),Базаданных[Индекс],0)),\"\")","v":""},{"$f":"NOT(ISERROR(SEARCH('Форма ввода'!$C$9,Базаданных[[#This Row],[Чей клиент]])))","v":true},{"$f":"IF(Базаданных[[#This Row],[Статус2]],COUNTIF($T$2:Базаданных[[#This Row],[Статус2]],TRUE),\"\")","v":129},{"$f":"IFERROR(INDEX(Базаданных[Чей клиент],MATCH(ROWS($U$2:Базаданных[[#This Row],[Индекс3]]),Базаданных[Индекс3],0)),\"\")","v":"Пименов Алексей"}]
["2019-04-05T19:18:01",43568.805908796297,13,"суббота","Апрель","2019",0,"-",0,"-",0,"-",46500,"-","Гречихина Юля","Геворг ",{"$f":"NOT(ISERROR(SEARCH('Форма ввода'!$C$5,Базаданных[[#This Row],[Клиент]])))","v":false},{"$f":"IF(Базаданных[[#This Row],[Статус]],COUNTIF($Q$2:Базаданных[[#This Row],[Статус]],TRUE),\"\")","v":""},{"$f":"IFERROR(INDEX(Базаданных[Клиент],MATCH(ROWS($R$2:Базаданных[[#This Row],[Индекс]]),Базаданных[Индекс],0)),\"\")","v":""},{"$f":"NOT(ISERROR(SEARCH('Форма ввода'!$C$9,Базаданных[[#This Row],[Чей клиент]])))","v":true},{"$f":"IF(Базаданных[[#This Row],[Статус2]],COUNTIF($T$2:Базаданных[[#This Row],[Статус2]],TRUE),\"\")","v":130},{"$f":"IFERROR(INDEX(Базаданных[Чей клиент],MATCH(ROWS($U$2:Базаданных[[#This Row],[Индекс3]]),Базаданных[Индекс3],0)),\"\")","v":"Нерсесов Давид"}]
["2019-04-05T19:18:01",43568.806048379629,13,"суббота","Апрель","2019",0,"-",0,"-",0,"-",46500,"-","Пименов Алексей","Булгаков Даниил (Екатеренбург)",{"$f":"NOT(ISERROR(SEARCH('Форма ввода'!$C$5,Базаданных[[#This Row],[Клиент]])))","v":false},{"$f":"IF(Базаданных[[#This Row],[Статус]],COUNTIF($Q$2:Базаданных[[#This Row],[Статус]],TRUE),\"\")","v":""},{"$f":"IFERROR(INDEX(Базаданных[Клиент],MATCH(ROWS($R$2:Базаданных[[#This Row],[Индекс]]),Базаданных[Индекс],0)),\"\")","v":""},{"$f":"NOT(ISERROR(SEARCH('Форма ввода'!$C$9,Базаданных[[#This Row],[Чей клиент]])))","v":true},{"$f":"IF(Базаданных[[#This Row],[Статус2]],COUNTIF($T$2:Базаданных[[#This Row],[Статус2]],TRUE),\"\")","v":131},{"$f":"IFERROR(INDEX(Базаданных[Чей клиент],MATCH(ROWS($U$2:Базаданных[[#This Row],[Индекс3]]),Базаданных[Индекс3],0)),\"\")","v":"Нерсесов Давид"}]
["2019-04-06T19:25:28",43568.809346180555,13,"суббота","Апрель","2019",0,"-",51005,"-",0,"-",0,"-","Нерсесов Давид","Нерсесов Давид ( AlexStore)",{"$f":"NOT(ISERROR(SEARCH('Форма ввода'!$C$5,Базаданных[[#This Row],[Клиент]])))","v":false},{"$f":"IF(Базаданных[[#This Row],[Статус]],COUNTIF($Q$2:Базаданных[[#This Row],[Статус]],TRUE),\"\")","v":""},{"$f":"IFERROR(INDEX(Базаданных[Клиент],MATCH(ROWS($R$2:Базаданных[[#This Row],[Индекс]]),Базаданных[Индекс],0)),\"\")","v":""},{"$f":"NOT(ISERROR(SEARCH('Форма ввода'!$C$9,Базаданных[[#This Row],[Чей клиент]])))","v":true},{"$f":"IF(Базаданных[[#This Row],[Статус2]],COUNTIF($T$2:Базаданных[[#This Row],[Статус2]],TRUE),\"\")","v":132},{"$f":"IFERROR(INDEX(Базаданных[Чей клиент],MATCH(ROWS($U$2:Базаданных[[#This Row],[Индекс3]]),Базаданных[Индекс3],0)),\"\")","v":"Нерсесов Давид"}]
["2019-04-06T19:25:28",43568.809519907409,13,"суббота","Апрель","2019",0,"-",20,"-",0,"-",0,"-","Нерсесов Давид","Василий T-95 (Савеловский)",{"$f":"NOT(ISERROR(SEARCH('Форма ввода'!$C$5,Базаданных[[#This Row],[Клиент]])))","v":false},{"$f":"IF(Базаданных[[#This Row],[Статус]],COUNTIF($Q$2:Базаданных[[#This Row],[Статус]],TRUE),\"\")","v":""},{"$f":"IFERROR(INDEX(Базаданных[Клиент],MATCH(ROWS($R$2:Базаданных[[#This Row],[Индекс]]),Базаданных[Индекс],0)),\"\")","v":""},{"$f":"NOT(ISERROR(SEARCH('Форма ввода'!$C$9,Базаданных[[#This Row],[Чей клиент]])))","v":true},{"$f":"IF(Базаданных[[#This Row],[Статус2]],COUNTIF($T$2:Базаданных[[#This Row],[Статус2]],TRUE),\"\")","v":133},{"$f":"IFERROR(INDEX(Базаданных[Чей клиент],MATCH(ROWS($U$2:Базаданных[[#This Row],[Индекс3]]),Базаданных[Индекс3],0)),\"\")","v":"Нерсесов Давид"}]
["2019-04-06T19:25:28",43568.810149305558,13,"суббота","Апрель","2019",0,"-",20780,"-",0,"-",0,"-","Нерсесов Давид","Скупка Радик Москва",{"$f":"NOT(ISERROR(SEARCH('Форма ввода'!$C$5,Базаданных[[#This Row],[Клиент]])))","v":false},{"$f":"IF(Базаданных[[#This Row],[Статус]],COUNTIF($Q$2:Базаданных[[#This Row],[Статус]],TRUE),\"\")","v":""},{"$f":"IFERROR(INDEX(Базаданных[Клиент],MATCH(ROWS($R$2:Базаданных[[#This Row],[Индекс]]),Базаданных[Индекс],0)),\"\")","v":""},{"$f":"NOT(ISERROR(SEARCH('Форма ввода'!$C$9,Базаданных[[#This Row],[Чей клиент]])))","v":true},{"$f":"IF(Базаданных[[#This Row],[Статус2]],COUNTIF($T$2:Базаданных[[#This Row],[Статус2]],TRUE),\"\")","v":134},{"$f":"IFERROR(INDEX(Базаданных[Чей клиент],MATCH(ROWS($U$2:Базаданных[[#This Row],[Индекс3]]),Базаданных[Индекс3],0)),\"\")","v":"Нерсесов Давид"}]
["2019-04-06T19:25:28",43568.810352430555,13,"суббота","Апрель","2019",0,"-",120,"-",0,"-",0,"-","Нерсесов Давид","Роман (Л-64 Савеловский)",{"$f":"NOT(ISERROR(SEARCH('Форма ввода'!$C$5,Базаданных[[#This Row],[Клиент]])))","v":false},{"$f":"IF(Базаданных[[#This Row],[Статус]],COUNTIF($Q$2:Базаданных[[#This Row],[Статус]],TRUE),\"\")","v":""},{"$f":"IFERROR(INDEX(Базаданных[Клиент],MATCH(ROWS($R$2:Базаданных[[#This Row],[Индекс]]),Базаданных[Индекс],0)),\"\")","v":""},{"$f":"NOT(ISERROR(SEARCH('Форма ввода'!$C$9,Базаданных[[#This Row],[Чей клиент]])))","v":true},{"$f":"IF(Базаданных[[#This Row],[Статус2]],COUNTIF($T$2:Базаданных[[#This Row],[Статус2]],TRUE),\"\")","v":135},{"$f":"IFERROR(INDEX(Базаданных[Чей клиент],MATCH(ROWS($U$2:Базаданных[[#This Row],[Индекс3]]),Базаданных[Индекс3],0)),\"\")","v":"Нерсесов Давид"}]
["2019-04-06T19:25:28",43568.810517592596,13,"суббота","Апрель","2019",0,"-",2365,"-",0,"-",0,"-","Нерсесов Давид","Кирил (Савок  П67-П77) ",{"$f":"NOT(ISERROR(SEARCH('Форма ввода'!$C$5,Базаданных[[#This Row],[Клиент]])))","v":false},{"$f":"IF(Базаданных[[#This Row],[Статус]],COUNTIF($Q$2:Базаданных[[#This Row],[Статус]],TRUE),\"\")","v":""},{"$f":"IFERROR(INDEX(Базаданных[Клиент],MATCH(ROWS($R$2:Базаданных[[#This Row],[Индекс]]),Базаданных[Индекс],0)),\"\")","v":""},{"$f":"NOT(ISERROR(SEARCH('Форма ввода'!$C$9,Базаданных[[#This Row],[Чей клиент]])))","v":true},{"$f":"IF(Базаданных[[#This Row],[Статус2]],COUNTIF($T$2:Базаданных[[#This Row],[Статус2]],TRUE),\"\")","v":136},{"$f":"IFERROR(INDEX(Базаданных[Чей клиент],MATCH(ROWS($U$2:Базаданных[[#This Row],[Индекс3]]),Базаданных[Индекс3],0)),\"\")","v":"Нерсесов Давид"}]
["2019-04-06T19:25:28",43568.817600347225,13,"суббота","Апрель","2019",0,"-",4720,"-",0,"-",0,"-","Нерсесов Давид","Надир (К84 Царицино)",{"$f":"NOT(ISERROR(SEARCH('Форма ввода'!$C$5,Базаданных[[#This Row],[Клиент]])))","v":false},{"$f":"IF(Базаданных[[#This Row],[Статус]],COUNTIF($Q$2:Базаданных[[#This Row],[Статус]],TRUE),\"\")","v":""},{"$f":"IFERROR(INDEX(Базаданных[Клиент],MATCH(ROWS($R$2:Базаданных[[#This Row],[Индекс]]),Базаданных[Индекс],0)),\"\")","v":""},{"$f":"NOT(ISERROR(SEARCH('Форма ввода'!$C$9,Базаданных[[#This Row],[Чей клиент]])))","v":true},{"$f":"IF(Базаданных[[#This Row],[Статус2]],COUNTIF($T$2:Базаданных[[#This Row],[Статус2]],TRUE),\"\")","v":137},{"$f":"IFERROR(INDEX(Базаданных[Чей клиент],MATCH(ROWS($U$2:Базаданных[[#This Row],[Индекс3]]),Базаданных[Индекс3],0)),\"\")","v":"Нерсесов Давид"}]
["2019-04-06T19:25:28",43568.817733796299,13,"суббота","Апрель","2019",0,"-",33730,"-",0,"-",0,"-","Нерсесов Давид","Карен (МобиПро24)",{"$f":"NOT(ISERROR(SEARCH('Форма ввода'!$C$5,Базаданных[[#This Row],[Клиент]])))","v":false},{"$f":"IF(Базаданных[[#This Row],[Статус]],COUNTIF($Q$2:Базаданных[[#This Row],[Статус]],TRUE),\"\")","v":""},{"$f":"IFERROR(INDEX(Базаданных[Клиент],MATCH(ROWS($R$2:Базаданных[[#This Row],[Индекс]]),Базаданных[Индекс],0)),\"\")","v":""},{"$f":"NOT(ISERROR(SEARCH('Форма ввода'!$C$9,Базаданных[[#This Row],[Чей клиент]])))","v":true},{"$f":"IF(Базаданных[[#This Row],[Статус2]],COUNTIF($T$2:Базаданных[[#This Row],[Статус2]],TRUE),\"\")","v":138},{"$f":"IFERROR(INDEX(Базаданных[Чей клиент],MATCH(ROWS($U$2:Базаданных[[#This Row],[Индекс3]]),Базаданных[Индекс3],0)),\"\")","v":"Нерсесов Давид"}]
["2019-04-06T19:25:28",43568.81794212963,13,"суббота","Апрель","2019",11450,"-",0,"-",0,"-",0,"-","Нерсесов Давид","Акоп П-90 (Савок)",{"$f":"NOT(ISERROR(SEARCH('Форма ввода'!$C$5,Базаданных[[#This Row],[Клиент]])))","v":false},{"$f":"IF(Базаданных[[#This Row],[Статус]],COUNTIF($Q$2:Базаданных[[#This Row],[Статус]],TRUE),\"\")","v":""},{"$f":"IFERROR(INDEX(Базаданных[Клиент],MATCH(ROWS($R$2:Базаданных[[#This Row],[Индекс]]),Базаданных[Индекс],0)),\"\")","v":""},{"$f":"NOT(ISERROR(SEARCH('Форма ввода'!$C$9,Базаданных[[#This Row],[Чей клиент]])))","v":true},{"$f":"IF(Базаданных[[#This Row],[Статус2]],COUNTIF($T$2:Базаданных[[#This Row],[Статус2]],TRUE),\"\")","v":139},{"$f":"IFERROR(INDEX(Базаданных[Чей клиент],MATCH(ROWS($U$2:Базаданных[[#This Row],[Индекс3]]),Базаданных[Индекс3],0)),\"\")","v":""}]
["2019-04-06T19:25:28",43568.818176967594,13,"суббота","Апрель","2019",31840,"-",0,"-",0,"-",0,"-","Нерсесов Давид","Султан (Т-89 Савок)",{"$f":"NOT(ISERROR(SEARCH('Форма ввода'!$C$5,Базаданных[[#This Row],[Клиент]])))","v":false},{"$f":"IF(Базаданных[[#This Row],[Статус]],COUNTIF($Q$2:Базаданных[[#This Row],[Статус]],TRUE),\"\")","v":""},{"$f":"IFERROR(INDEX(Базаданных[Клиент],MATCH(ROWS($R$2:Базаданных[[#This Row],[Индекс]]),Базаданных[Индекс],0)),\"\")","v":""},{"$f":"NOT(ISERROR(SEARCH('Форма ввода'!$C$9,Базаданных[[#This Row],[Чей клиент]])))","v":true},{"$f":"IF(Базаданных[[#This Row],[Статус2]],COUNTIF($T$2:Базаданных[[#This Row],[Статус2]],TRUE),\"\")","v":140},{"$f":"IFERROR(INDEX(Базаданных[Чей клиент],MATCH(ROWS($U$2:Базаданных[[#This Row],[Индекс3]]),Базаданных[Индекс3],0)),\"\")","v":""}]